{"text_format":"1","workbook":"xlsx","n_sheets":4,"sheets":["Produktionsanlæg","Distributionsanlæg","Fællesfunktionsanlæg","Drop downliste"],"not_rendered":{"charts":0,"images":0,"macros":1,"external_links":0,"defined_names":2,"comments":0,"pivot_tables":0},"unopened":[],"bounds":{"document_bytes":16777216,"sheet_cells":100000,"rows_first":2000,"rows_last":500,"rows_between":2000,"halvings":0,"cell_chars":16384,"cell_head_chars":4096},"cells_cut":0,"cells_raw":0,"read":"whole","date_system":"1900"}

{"sheet":"Produktionsanlæg","index":0,"n_rows":1990,"n_cols":6,"rows_kept":1990,"cut":false,"hidden":false,"merged":[[0,5,1,5],[0,0,1,0],[0,1,1,1],[0,2,1,2],[0,3,1,3],[0,4,1,4]]}
["Produktionsanlæg","Enhed","Standard-levetid","Samlet mængde per 31/12-2014","Samlet mængde per 31/12-2015","Bemærk-ninger"]
[]
["Renseanlæg 1"]
["Mindre renseanlæg"]
["Mindre renseanlæg < 5.000 PE uden mulighed for opdeling","PE",40,0]
["Renseanlæg >= 5.000 PE, Vandbehandling"]
["Indløb med riste, Konstruktioner","PE",60,290000,{"$f":"D7","v":290000},"Renseanlæg Vest"]
["Indløb med riste, Mek/EL","PE",20,290000,{"$f":"D8","v":290000},"Renseanlæg Vest"]
["Indløb med riste, SRO","PE",10,290000,290000,"Renseanlæg Vest"]
["Sand- og fedtfang, Kontruktioner","PE",60,290000,290000,"Renseanlæg Vest"]
["Sand- og fedtfang, Mek/EL","PE",20,290000,290000,"Renseanlæg Vest"]
["Sand- og fedtfang, SRO","PE",10,290000,290000,"Renseanlæg Vest"]
["Forklaring, Konstruktioner","PE",60,290000,290000,"Renseanlæg Vest"]
["Forklaring, Mek/EL","PE",20,290000,290000,"Renseanlæg Vest"]
["Forklaring, SRO","PE",10,290000,290000,"Renseanlæg Vest"]
["Beluftningstanke, Konstruktioner","PE",60,290000,290000,"Renseanlæg Vest"]
["Beluftningstanke, Mek/EL","PE",20,290000,290000,"Renseanlæg Vest"]
["Beluftningstanke, SRO","PE",10,290000,290000,"Renseanlæg Vest"]
["Efterklaringstanke, Konstruktioner","PE",60,290000,290000,"Renseanlæg Vest"]
["Efterklaringstanke, Mek/El","PE",20,290000,290000,"Renseanlæg Vest"]
["Efterklaringstanke, SRO","PE",10,290000,290000,"Renseanlæg Vest"]
["Efterbehandlingsanlæg (sandfilter), Konstruktioner","PE",60,0,0]
["Efterbehandlingsanlæg (sandfilter), Mek/EL","PE",20,0,0]
["Efterbehandlingsanlæg (sandfilter), SRO","PE",10,0,0]
["Renseanlæg >= 5.000 PE, Slambehandling"]
["Forafvanding, slam, Konstruktion","PE",60,290000,{"$f":"D26","v":290000},"Renseanlæg Vest"]
["Forafvanding, slam, Mek/EL","PE",20,290000,{"$f":"D27","v":290000},"Renseanlæg Vest"]
["Forafvanding, slam, SRO","PE",10,290000,290000,"Renseanlæg Vest"]
["Rådnetanke, slam, Konstruktioner","PE",60,290000,290000,"Renseanlæg Vest"]
["Rådnetanke, slam, Mek/EL","PE",20,290000,290000,"Renseanlæg Vest"]
["Rådnetanke, slam, SRO","PE",10,290000,290000,"Renseanlæg Vest"]
["Gasdisponering, Konstruktioner","PE",60,290000,290000,"Renseanlæg Vest"]
["Gasdisponering, Mek/EL","PE",20,290000,290000,"Renseanlæg Vest"]
["Gasdisponering, SRO","PE",10,290000,290000,"Renseanlæg Vest"]
["Gasdisponering - elproduktionsanlæg, Konstruktioner","PE",60,290000,290000,"Renseanlæg Vest"]
["Gasdisponering - elproduktionsanlæg, Mek/EL","PE",20,290000,290000,"Renseanlæg Vest"]
["Gasdisponering - elproduktionsanlæg, SRO","PE",10,290000,290000,"Renseanlæg Vest"]
["Slutafvanding, slam - lavteknologisk (slambede), Konstruktioner","PE",60,0,0]
["Slutafvanding, slam - lavteknologisk (slambede), Mek/EL","PE",20,0,0]
["Slutafvanding, slam - lavteknologisk (slambede), SRO","PE",10,0,0]
["Slutafvanding, slam - højteknologisk (centrifuger), Konstruktioner","PE",60,290000,290000,"Renseanlæg Vest"]
["Slutafvanding, slam - højteknologisk (centrifuger), Mek/El","PE",20,290000,290000,"Renseanlæg Vest"]
["Slutafvanding, slam - højteknologisk (centrifuger), SRO","PE",10,290000,290000,"Renseanlæg Vest"]
["Renseanlæg >= 5.000 PE, Slamdisponering"]
["Slutdisponering, slam - lavteknologisk (slammineralisering), Konstruktioner","PE",60,0,{"$f":"D45","v":0}]
["Slutdisponering, slam - lavteknologisk (slammineralisering), Mek/EL","PE",20,0,{"$f":"D46","v":0}]
["Slutdisponering, slam - lavteknologisk (slammineralisering), SRO","PE",10,0,0]
["Slutdisponering, slam - højteknologisk (slamtørring), Konstruktioner","PE",60,0,0]
["Slutdisponering, slam - højteknologisk (slamtørring), Mek/EL","PE",20,0,0]
["Slutdisponering, slam - højteknologisk (slamtørring), SRO","PE",10,0,0]
["Slutdisponering, slam - højteknologisk (slamtørring og -forbrænding), Konstruktioner","PE",60,0,0]
["Slutdisponering, slam - højteknologisk (slamtørring og -forbrænding), Mek/EL","PE",20,0,0]
["Slutdisponering, slam - højteknologisk (slamtørring og -forbrænding), SRO","PE",10,0,0]
["Renseanlæg 2"]
["Mindre renseanlæg"]
["Mindre renseanlæg < 5.000 PE uden mulighed for opdeling","PE",40,0,{"$f":"D56","v":0}]
["Renseanlæg >= 5.000 PE, Vandbehandling"]
["Indløb med riste, Konstruktioner","PE",60,125000,{"$f":"D58","v":125000},"Renseanlæg Øst"]
["Indløb med riste, Mek/EL","PE",20,125000,{"$f":"D59","v":125000},"Renseanlæg Øst"]
["Indløb med riste, SRO","PE",10,125000,125000,"Renseanlæg Øst"]
["Sand- og fedtfang, Kontruktioner","PE",60,125000,125000,"Renseanlæg Øst"]
["Sand- og fedtfang, Mek/EL","PE",20,125000,125000,"Renseanlæg Øst"]
["Sand- og fedtfang, SRO","PE",10,125000,125000,"Renseanlæg Øst"]
["Forklaring, Konstruktioner","PE",60,125000,125000,"Renseanlæg Øst"]
["Forklaring, Mek/EL","PE",20,125000,125000,"Renseanlæg Øst"]
["Forklaring, SRO","PE",10,125000,125000,"Renseanlæg Øst"]
["Beluftningstanke, Konstruktioner","PE",60,125000,125000,"Renseanlæg Øst"]
["Beluftningstanke, Mek/EL","PE",20,125000,125000,"Renseanlæg Øst"]
["Beluftningstanke, SRO","PE",10,125000,125000,"Renseanlæg Øst"]
["Efterklaringstanke, Konstruktioner","PE",60,125000,125000,"Renseanlæg Øst"]
["Efterklaringstanke, Mek/El","PE",20,125000,125000,"Renseanlæg Øst"]
["Efterklaringstanke, SRO","PE",10,125000,125000,"Renseanlæg Øst"]
["Efterbehandlingsanlæg (sandfilter), Konstruktioner","PE",60,0,0]
["Efterbehandlingsanlæg (sandfilter), Mek/EL","PE",20,0,0]
["Efterbehandlingsanlæg (sandfilter), SRO","PE",10,0,0]
["Renseanlæg >= 5.000 PE, Slambehandling"]
["Forafvanding, slam, Konstruktion","PE",60,125000,{"$f":"D77","v":125000},"Renseanlæg Øst"]
["Forafvanding, slam, Mek/EL","PE",20,125000,{"$f":"D78","v":125000},"Renseanlæg Øst"]
["Forafvanding, slam, SRO","PE",10,125000,125000,"Renseanlæg Øst"]
["Rådnetanke, slam, Konstruktioner","PE",60,125000,125000,"Renseanlæg Øst"]
["Rådnetanke, slam, Mek/EL","PE",20,125000,125000,"Renseanlæg Øst"]
["Rådnetanke, slam, SRO","PE",10,125000,125000,"Renseanlæg Øst"]
["Gasdisponering, Konstruktioner","PE",60,125000,125000,"Renseanlæg Øst"]
["Gasdisponering, Mek/EL","PE",20,125000,125000,"Renseanlæg Øst"]
["Gasdisponering, SRO","PE",10,125000,125000,"Renseanlæg Øst"]
["Gasdisponering - elproduktionsanlæg, Konstruktioner","PE",60,125000,125000,"Renseanlæg Øst"]
["Gasdisponering - elproduktionsanlæg, Mek/EL","PE",20,125000,125000,"Renseanlæg Øst"]
["Gasdisponering - elproduktionsanlæg, SRO","PE",10,125000,125000,"Renseanlæg Øst"]
["Slutafvanding, slam - lavteknologisk (slambede), Konstruktioner","PE",60,0,0]
["Slutafvanding, slam - lavteknologisk (slambede), Mek/EL","PE",20,0,0]
["Slutafvanding, slam - lavteknologisk (slambede), SRO","PE",10,0,0]
["Slutafvanding, slam - højteknologisk (centrifuger), Konstruktioner","PE",60,125000,125000,"Renseanlæg Øst"]
["Slutafvanding, slam - højteknologisk (centrifuger), Mek/El","PE",20,125000,125000,"Renseanlæg Øst"]
["Slutafvanding, slam - højteknologisk (centrifuger), SRO","PE",10,125000,125000,"Renseanlæg Øst"]
["Renseanlæg >= 5.000 PE, Slamdisponering"]
["Slutdisponering, slam - lavteknologisk (slammineralisering), Konstruktioner","PE",60,null,0]
["Slutdisponering, slam - lavteknologisk (slammineralisering), Mek/EL","PE",20,null,0]
["Slutdisponering, slam - lavteknologisk (slammineralisering), SRO","PE",10,null,0]
["Slutdisponering, slam - højteknologisk (slamtørring), Konstruktioner","PE",60,0,0]
["Slutdisponering, slam - højteknologisk (slamtørring), Mek/EL","PE",20,0,0]
["Slutdisponering, slam - højteknologisk (slamtørring), SRO","PE",10,0,0]
["Slutdisponering, slam - højteknologisk (slamtørring og -forbrænding), Konstruktioner","PE",60,0,0]
["Slutdisponering, slam - højteknologisk (slamtørring og -forbrænding), Mek/EL","PE",20,0,0]
["Slutdisponering, slam - højteknologisk (slamtørring og -forbrænding), SRO","PE",10,0,0]
["Renseanlæg 3"]
["Mindre renseanlæg"]
["Mindre renseanlæg < 5.000 PE uden mulighed for opdeling","PE",40,0,0]
["Renseanlæg >= 5.000 PE, Vandbehandling"]
["Indløb med riste, Konstruktioner","PE",60,0,{"$f":"D109","v":0}]
["Indløb med riste, Mek/EL","PE",20,0,{"$f":"D110","v":0}]
["Indløb med riste, SRO","PE",10,0,0]
["Sand- og fedtfang, Kontruktioner","PE",60,0,0]
["Sand- og fedtfang, Mek/EL","PE",20,0,0]
["Sand- og fedtfang, SRO","PE",10,0,0]
["Forklaring, Konstruktioner","PE",60,0,0]
["Forklaring, Mek/EL","PE",20,0,0]
["Forklaring, SRO","PE",10,0,0]
["Beluftningstanke, Konstruktioner","PE",60,0,0]
["Beluftningstanke, Mek/EL","PE",20,0,0]
["Beluftningstanke, SRO","PE",10,0,0]
["Efterklaringstanke, Konstruktioner","PE",60,0,0]
["Efterklaringstanke, Mek/El","PE",20,0,0]
["Efterklaringstanke, SRO","PE",10,0,0]
["Efterbehandlingsanlæg (sandfilter), Konstruktioner","PE",60,0,0]
["Efterbehandlingsanlæg (sandfilter), Mek/EL","PE",20,0,0]
["Efterbehandlingsanlæg (sandfilter), SRO","PE",10,0,0]
["Renseanlæg >= 5.000 PE, Slambehandling"]
["Forafvanding, slam, Konstruktion","PE",60,0,{"$f":"D128","v":0}]
["Forafvanding, slam, Mek/EL","PE",20,0,{"$f":"D129","v":0}]
["Forafvanding, slam, SRO","PE",10,0,0]
["Rådnetanke, slam, Konstruktioner","PE",60,0,0]
["Rådnetanke, slam, Mek/EL","PE",20,0,0]
["Rådnetanke, slam, SRO","PE",10,0,0]
["Gasdisponering, Konstruktioner","PE",60,0,0]
["Gasdisponering, Mek/EL","PE",20,0,0]
["Gasdisponering, SRO","PE",10,0,0]
["Gasdisponering - elproduktionsanlæg, Konstruktioner","PE",60,0,0]
["Gasdisponering - elproduktionsanlæg, Mek/EL","PE",20,0,0]
["Gasdisponering - elproduktionsanlæg, SRO","PE",10,0,0]
["Slutafvanding, slam - lavteknologisk (slambede), Konstruktioner","PE",60,0,0]
["Slutafvanding, slam - lavteknologisk (slambede), Mek/EL","PE",20,0,0]
["Slutafvanding, slam - lavteknologisk (slambede), SRO","PE",10,0,0]
["Slutafvanding, slam - højteknologisk (centrifuger), Konstruktioner","PE",60,0,0]
["Slutafvanding, slam - højteknologisk (centrifuger), Mek/El","PE",20,0,0]
["Slutafvanding, slam - højteknologisk (centrifuger), SRO","PE",10,0,0]
["Renseanlæg >= 5.000 PE, Slamdisponering"]
["Slutdisponering, slam - lavteknologisk (slammineralisering), Konstruktioner","PE",60,415000,{"$f":"D147","v":415000},"Måde Slammineraliseringsanlæg"]
["Slutdisponering, slam - lavteknologisk (slammineralisering), Mek/EL","PE",20,415000,{"$f":"D148","v":415000},"Måde Slammineraliseringsanlæg"]
["Slutdisponering, slam - lavteknologisk (slammineralisering), SRO","PE",10,415000,415000,"Måde Slammineraliseringsanlæg"]
["Slutdisponering, slam - højteknologisk (slamtørring), Konstruktioner","PE",60,0,0]
["Slutdisponering, slam - højteknologisk (slamtørring), Mek/EL","PE",20,0,0]
["Slutdisponering, slam - højteknologisk (slamtørring), SRO","PE",10,0,0]
["Slutdisponering, slam - højteknologisk (slamtørring og -forbrænding), Konstruktioner","PE",60,0,0]
["Slutdisponering, slam - højteknologisk (slamtørring og -forbrænding), Mek/EL","PE",20,0,0]
["Slutdisponering, slam - højteknologisk (slamtørring og -forbrænding), SRO","PE",10,0,0]
["Renseanlæg 4"]
["Mindre renseanlæg"]
["Mindre renseanlæg < 5.000 PE uden mulighed for opdeling","PE",40,0,{"$f":"D158","v":0}]
["Renseanlæg >= 5.000 PE, Vandbehandling"]
["Indløb med riste, Konstruktioner","PE",60,25000,{"$f":"D160","v":25000},"Ribe Renseanlæg"]
["Indløb med riste, Mek/EL","PE",20,25000,{"$f":"D161","v":25000},"Ribe Renseanlæg"]
["Indløb med riste, SRO","PE",10,25000,25000,"Ribe Renseanlæg"]
["Sand- og fedtfang, Kontruktioner","PE",60,25000,25000,"Ribe Renseanlæg"]
["Sand- og fedtfang, Mek/EL","PE",20,25000,25000,"Ribe Renseanlæg"]
["Sand- og fedtfang, SRO","PE",10,25000,25000,"Ribe Renseanlæg"]
["Forklaring, Konstruktioner","PE",60,25000,25000,"Ribe Renseanlæg"]
["Forklaring, Mek/EL","PE",20,25000,25000,"Ribe Renseanlæg"]
["Forklaring, SRO","PE",10,25000,25000,"Ribe Renseanlæg"]
["Beluftningstanke, Konstruktioner","PE",60,25000,25000,"Ribe Renseanlæg"]
["Beluftningstanke, Mek/EL","PE",20,25000,25000,"Ribe Renseanlæg"]
["Beluftningstanke, SRO","PE",10,25000,25000,"Ribe Renseanlæg"]
["Efterklaringstanke, Konstruktioner","PE",60,25000,25000,"Ribe Renseanlæg"]
["Efterklaringstanke, Mek/El","PE",20,25000,25000,"Ribe Renseanlæg"]
["Efterklaringstanke, SRO","PE",10,25000,25000,"Ribe Renseanlæg"]
["Efterbehandlingsanlæg (sandfilter), Konstruktioner","PE",60,0,0]
["Efterbehandlingsanlæg (sandfilter), Mek/EL","PE",20,0,0]
["Efterbehandlingsanlæg (sandfilter), SRO","PE",10,0,0]
["Renseanlæg >= 5.000 PE, Slambehandling"]
["Forafvanding, slam, Konstruktion","PE",60,25000,{"$f":"D179","v":25000},"Ribe Renseanlæg"]
["Forafvanding, slam, Mek/EL","PE",20,25000,{"$f":"D180","v":25000},"Ribe Renseanlæg"]
["Forafvanding, slam, SRO","PE",10,25000,25000,"Ribe Renseanlæg"]
["Rådnetanke, slam, Konstruktioner","PE",60,0,0]
["Rådnetanke, slam, Mek/EL","PE",20,0,0]
["Rådnetanke, slam, SRO","PE",10,0,0]
["Gasdisponering, Konstruktioner","PE",60,0,0]
["Gasdisponering, Mek/EL","PE",20,0,0]
["Gasdisponering, SRO","PE",10,0,0]
["Gasdisponering - elproduktionsanlæg, Konstruktioner","PE",60,0,0]
["Gasdisponering - elproduktionsanlæg, Mek/EL","PE",20,0,0]
["Gasdisponering - elproduktionsanlæg, SRO","PE",10,0,0]
["Slutafvanding, slam - lavteknologisk (slambede), Konstruktioner","PE",60,0,0]
["Slutafvanding, slam - lavteknologisk (slambede), Mek/EL","PE",20,0,0]
["Slutafvanding, slam - lavteknologisk (slambede), SRO","PE",10,0,0]
["Slutafvanding, slam - højteknologisk (centrifuger), Konstruktioner","PE",60,25000,25000,"Ribe Renseanlæg"]
["Slutafvanding, slam - højteknologisk (centrifuger), Mek/El","PE",20,25000,25000,"Ribe Renseanlæg"]
["Slutafvanding, slam - højteknologisk (centrifuger), SRO","PE",10,25000,25000,"Ribe Renseanlæg"]
["Renseanlæg >= 5.000 PE, Slamdisponering"]
["Slutdisponering, slam - lavteknologisk (slammineralisering), Konstruktioner","PE",60,0,{"$f":"D198","v":0}]
["Slutdisponering, slam - lavteknologisk (slammineralisering), Mek/EL","PE",20,0,{"$f":"D199","v":0}]
["Slutdisponering, slam - lavteknologisk (slammineralisering), SRO","PE",10,0,0]
["Slutdisponering, slam - højteknologisk (slamtørring), Konstruktioner","PE",60,0,0]
["Slutdisponering, slam - højteknologisk (slamtørring), Mek/EL","PE",20,0,0]
["Slutdisponering, slam - højteknologisk (slamtørring), SRO","PE",10,0,0]
["Slutdisponering, slam - højteknologisk (slamtørring og -forbrænding), Konstruktioner","PE",60,0,0]
["Slutdisponering, slam - højteknologisk (slamtørring og -forbrænding), Mek/EL","PE",20,0,0]
["Slutdisponering, slam - højteknologisk (slamtørring og -forbrænding), SRO","PE",10,0,0]
["Renseanlæg 5"]
["Mindre renseanlæg"]
["Mindre renseanlæg < 5.000 PE uden mulighed for opdeling","PE",40,0,{"$f":"D209","v":0}]
["Renseanlæg >= 5.000 PE, Vandbehandling"]
["Indløb med riste, Konstruktioner","PE",60,8000,{"$f":"D211","v":8000},"Bramming Nord Renseanlæg"]
["Indløb med riste, Mek/EL","PE",20,8000,{"$f":"D212","v":8000},"Bramming Nord Renseanlæg"]
["Indløb med riste, SRO","PE",10,8000,8000,"Bramming Nord Renseanlæg"]
["Sand- og fedtfang, Kontruktioner","PE",60,8000,8000,"Bramming Nord Renseanlæg"]
["Sand- og fedtfang, Mek/EL","PE",20,8000,8000,"Bramming Nord Renseanlæg"]
["Sand- og fedtfang, SRO","PE",10,8000,8000,"Bramming Nord Renseanlæg"]
["Forklaring, Konstruktioner","PE",60,0,0]
["Forklaring, Mek/EL","PE",20,0,0]
["Forklaring, SRO","PE",10,0,0]
["Beluftningstanke, Konstruktioner","PE",60,8000,8000,"Bramming Nord Renseanlæg"]
["Beluftningstanke, Mek/EL","PE",20,8000,8000,"Bramming Nord Renseanlæg"]
["Beluftningstanke, SRO","PE",10,8000,8000,"Bramming Nord Renseanlæg"]
["Efterklaringstanke, Konstruktioner","PE",60,8000,8000,"Bramming Nord Renseanlæg"]
["Efterklaringstanke, Mek/El","PE",20,8000,8000,"Bramming Nord Renseanlæg"]
["Efterklaringstanke, SRO","PE",10,8000,8000,"Bramming Nord Renseanlæg"]
["Efterbehandlingsanlæg (sandfilter), Konstruktioner","PE",60,0,0]
["Efterbehandlingsanlæg (sandfilter), Mek/EL","PE",20,0,0]
["Efterbehandlingsanlæg (sandfilter), SRO","PE",10,0,0]
["Renseanlæg >= 5.000 PE, Slambehandling"]
["Forafvanding, slam, Konstruktion","PE",60,0,{"$f":"D230","v":0}]
["Forafvanding, slam, Mek/EL","PE",20,0,{"$f":"D231","v":0}]
["Forafvanding, slam, SRO","PE",10,0,0]
["Rådnetanke, slam, Konstruktioner","PE",60,0,0]
["Rådnetanke, slam, Mek/EL","PE",20,0,0]
["Rådnetanke, slam, SRO","PE",10,0,0]
["Gasdisponering, Konstruktioner","PE",60,0,0]
["Gasdisponering, Mek/EL","PE",20,0,0]
["Gasdisponering, SRO","PE",10,0,0]
["Gasdisponering - elproduktionsanlæg, Konstruktioner","PE",60,0,0]
["Gasdisponering - elproduktionsanlæg, Mek/EL","PE",20,0,0]
["Gasdisponering - elproduktionsanlæg, SRO","PE",10,0,0]
["Slutafvanding, slam - lavteknologisk (slambede), Konstruktioner","PE",60,0,0]
["Slutafvanding, slam - lavteknologisk (slambede), Mek/EL","PE",20,0,0]
["Slutafvanding, slam - lavteknologisk (slambede), SRO","PE",10,0,0]
["Slutafvanding, slam - højteknologisk (centrifuger), Konstruktioner","PE",60,0,0]
["Slutafvanding, slam - højteknologisk (centrifuger), Mek/El","PE",20,0,0]
["Slutafvanding, slam - højteknologisk (centrifuger), SRO","PE",10,0,0]
["Renseanlæg >= 5.000 PE, Slamdisponering"]
["Slutdisponering, slam - lavteknologisk (slammineralisering), Konstruktioner","PE",60,8000,{"$f":"D249","v":8000},"Bramming Nord Renseanlæg"]
["Slutdisponering, slam - lavteknologisk (slammineralisering), Mek/EL","PE",20,8000,{"$f":"D250","v":8000},"Bramming Nord Renseanlæg"]
["Slutdisponering, slam - lavteknologisk (slammineralisering), SRO","PE",10,8000,8000,"Bramming Nord Renseanlæg"]
["Slutdisponering, slam - højteknologisk (slamtørring), Konstruktioner","PE",60,0,0]
["Slutdisponering, slam - højteknologisk (slamtørring), Mek/EL","PE",20,0,0]
["Slutdisponering, slam - højteknologisk (slamtørring), SRO","PE",10,0,0]
["Slutdisponering, slam - højteknologisk (slamtørring og -forbrænding), Konstruktioner","PE",60,0,0]
["Slutdisponering, slam - højteknologisk (slamtørring og -forbrænding), Mek/EL","PE",20,0,0]
["Slutdisponering, slam - højteknologisk (slamtørring og -forbrænding), SRO","PE",10,0,0]
["Renseanlæg 6"]
["Mindre renseanlæg"]
["Mindre renseanlæg < 5.000 PE uden mulighed for opdeling","PE",40,2500,{"$f":"D260","v":2500},"Gredstedbro Renseanlæg"]
["Renseanlæg >= 5.000 PE, Vandbehandling"]
["Indløb med riste, Konstruktioner","PE",60,0,{"$f":"D262","v":0}]
["Indløb med riste, Mek/EL","PE",20,0,{"$f":"D263","v":0}]
["Indløb med riste, SRO","PE",10,0,0]
["Sand- og fedtfang, Kontruktioner","PE",60,0,0]
["Sand- og fedtfang, Mek/EL","PE",20,0,0]
["Sand- og fedtfang, SRO","PE",10,0,0]
["Forklaring, Konstruktioner","PE",60,0,0]
["Forklaring, Mek/EL","PE",20,0,0]
["Forklaring, SRO","PE",10,0,0]
["Beluftningstanke, Konstruktioner","PE",60,0,0]
["Beluftningstanke, Mek/EL","PE",20,0,0]
["Beluftningstanke, SRO","PE",10,0,0]
["Efterklaringstanke, Konstruktioner","PE",60,0,0]
["Efterklaringstanke, Mek/El","PE",20,0,0]
["Efterklaringstanke, SRO","PE",10,0,0]
["Efterbehandlingsanlæg (sandfilter), Konstruktioner","PE",60,0,0]
["Efterbehandlingsanlæg (sandfilter), Mek/EL","PE",20,0,0]
["Efterbehandlingsanlæg (sandfilter), SRO","PE",10,0,0]
["Renseanlæg >= 5.000 PE, Slambehandling"]
["Forafvanding, slam, Konstruktion","PE",60,0,{"$f":"D281","v":0}]
["Forafvanding, slam, Mek/EL","PE",20,0,{"$f":"D282","v":0}]
["Forafvanding, slam, SRO","PE",10,0,0]
["Rådnetanke, slam, Konstruktioner","PE",60,0,0]
["Rådnetanke, slam, Mek/EL","PE",20,0,0]
["Rådnetanke, slam, SRO","PE",10,0,0]
["Gasdisponering, Konstruktioner","PE",60,0,0]
["Gasdisponering, Mek/EL","PE",20,0,0]
["Gasdisponering, SRO","PE",10,0,0]
["Gasdisponering - elproduktionsanlæg, Konstruktioner","PE",60,0,0]
["Gasdisponering - elproduktionsanlæg, Mek/EL","PE",20,0,0]
["Gasdisponering - elproduktionsanlæg, SRO","PE",10,0,0]
["Slutafvanding, slam - lavteknologisk (slambede), Konstruktioner","PE",60,0,0]
["Slutafvanding, slam - lavteknologisk (slambede), Mek/EL","PE",20,0,0]
["Slutafvanding, slam - lavteknologisk (slambede), SRO","PE",10,0,0]
["Slutafvanding, slam - højteknologisk (centrifuger), Konstruktioner","PE",60,0,0]
["Slutafvanding, slam - højteknologisk (centrifuger), Mek/El","PE",20,0,0]
["Slutafvanding, slam - højteknologisk (centrifuger), SRO","PE",10,0,0]
["Renseanlæg >= 5.000 PE, Slamdisponering"]
["Slutdisponering, slam - lavteknologisk (slammineralisering), Konstruktioner","PE",60,0,{"$f":"D300","v":0}]
["Slutdisponering, slam - lavteknologisk (slammineralisering), Mek/EL","PE",20,0,{"$f":"D301","v":0}]
["Slutdisponering, slam - lavteknologisk (slammineralisering), SRO","PE",10,0,0]
["Slutdisponering, slam - højteknologisk (slamtørring), Konstruktioner","PE",60,0,0]
["Slutdisponering, slam - højteknologisk (slamtørring), Mek/EL","PE",20,0,0]
["Slutdisponering, slam - højteknologisk (slamtørring), SRO","PE",10,0,0]
["Slutdisponering, slam - højteknologisk (slamtørring og -forbrænding), Konstruktioner","PE",60,0,0]
["Slutdisponering, slam - højteknologisk (slamtørring og -forbrænding), Mek/EL","PE",20,0,0]
["Slutdisponering, slam - højteknologisk (slamtørring og -forbrænding), SRO","PE",10,0,0]
["Renseanlæg 7"]
["Mindre renseanlæg"]
["Mindre renseanlæg < 5.000 PE uden mulighed for opdeling","PE",40,2000,{"$f":"D311","v":2000},"Gørding Renseanlæg"]
["Renseanlæg >= 5.000 PE, Vandbehandling"]
["Indløb med riste, Konstruktioner","PE",60,0,{"$f":"D313","v":0}]
["Indløb med riste, Mek/EL","PE",20,0,{"$f":"D314","v":0}]
["Indløb med riste, SRO","PE",10,0,0]
["Sand- og fedtfang, Kontruktioner","PE",60,0,0]
["Sand- og fedtfang, Mek/EL","PE",20,0,0]
["Sand- og fedtfang, SRO","PE",10,0,0]
["Forklaring, Konstruktioner","PE",60,0,0]
["Forklaring, Mek/EL","PE",20,0,0]
["Forklaring, SRO","PE",10,0,0]
["Beluftningstanke, Konstruktioner","PE",60,0,0]
["Beluftningstanke, Mek/EL","PE",20,0,0]
["Beluftningstanke, SRO","PE",10,0,0]
["Efterklaringstanke, Konstruktioner","PE",60,0,0]
["Efterklaringstanke, Mek/El","PE",20,0,0]
["Efterklaringstanke, SRO","PE",10,0,0]
["Efterbehandlingsanlæg (sandfilter), Konstruktioner","PE",60,0,0]
["Efterbehandlingsanlæg (sandfilter), Mek/EL","PE",20,0,0]
["Efterbehandlingsanlæg (sandfilter), SRO","PE",10,0,0]
["Renseanlæg >= 5.000 PE, Slambehandling"]
["Forafvanding, slam, Konstruktion","PE",60,0,{"$f":"D332","v":0}]
["Forafvanding, slam, Mek/EL","PE",20,0,{"$f":"D333","v":0}]
["Forafvanding, slam, SRO","PE",10,0,0]
["Rådnetanke, slam, Konstruktioner","PE",60,0,0]
["Rådnetanke, slam, Mek/EL","PE",20,0,0]
["Rådnetanke, slam, SRO","PE",10,0,0]
["Gasdisponering, Konstruktioner","PE",60,0,0]
["Gasdisponering, Mek/EL","PE",20,0,0]
["Gasdisponering, SRO","PE",10,0,0]
["Gasdisponering - elproduktionsanlæg, Konstruktioner","PE",60,0,0]
["Gasdisponering - elproduktionsanlæg, Mek/EL","PE",20,0,0]
["Gasdisponering - elproduktionsanlæg, SRO","PE",10,0,0]
["Slutafvanding, slam - lavteknologisk (slambede), Konstruktioner","PE",60,0,0]
["Slutafvanding, slam - lavteknologisk (slambede), Mek/EL","PE",20,0,0]
["Slutafvanding, slam - lavteknologisk (slambede), SRO","PE",10,0,0]
["Slutafvanding, slam - højteknologisk (centrifuger), Konstruktioner","PE",60,0,0]
["Slutafvanding, slam - højteknologisk (centrifuger), Mek/El","PE",20,0,0]
["Slutafvanding, slam - højteknologisk (centrifuger), SRO","PE",10,0,0]
["Renseanlæg >= 5.000 PE, Slamdisponering"]
["Slutdisponering, slam - lavteknologisk (slammineralisering), Konstruktioner","PE",60,0,{"$f":"D351","v":0}]
["Slutdisponering, slam - lavteknologisk (slammineralisering), Mek/EL","PE",20,0,{"$f":"D352","v":0}]
["Slutdisponering, slam - lavteknologisk (slammineralisering), SRO","PE",10,0,0]
["Slutdisponering, slam - højteknologisk (slamtørring), Konstruktioner","PE",60,0,0]
["Slutdisponering, slam - højteknologisk (slamtørring), Mek/EL","PE",20,0,0]
["Slutdisponering, slam - højteknologisk (slamtørring), SRO","PE",10,0,0]
["Slutdisponering, slam - højteknologisk (slamtørring og -forbrænding), Konstruktioner","PE",60,0,0]
["Slutdisponering, slam - højteknologisk (slamtørring og -forbrænding), Mek/EL","PE",20,0,0]
["Slutdisponering, slam - højteknologisk (slamtørring og -forbrænding), SRO","PE",10,0,0]
["Renseanlæg 8"]
["Mindre renseanlæg"]
["Mindre renseanlæg < 5.000 PE uden mulighed for opdeling","PE",40,1600,{"$f":"D362","v":1600},"St. Darum Renseanlæg"]
["Renseanlæg >= 5.000 PE, Vandbehandling"]
["Indløb med riste, Konstruktioner","PE",60,0,{"$f":"D364","v":0}]
["Indløb med riste, Mek/EL","PE",20,0,{"$f":"D365","v":0}]
["Indløb med riste, SRO","PE",10,0,0]
["Sand- og fedtfang, Kontruktioner","PE",60,0,0]
["Sand- og fedtfang, Mek/EL","PE",20,0,0]
["Sand- og fedtfang, SRO","PE",10,0,0]
["Forklaring, Konstruktioner","PE",60,0,0]
["Forklaring, Mek/EL","PE",20,0,0]
["Forklaring, SRO","PE",10,0,0]
["Beluftningstanke, Konstruktioner","PE",60,0,0]
["Beluftningstanke, Mek/EL","PE",20,0,0]
["Beluftningstanke, SRO","PE",10,0,0]
["Efterklaringstanke, Konstruktioner","PE",60,0,0]
["Efterklaringstanke, Mek/El","PE",20,0,0]
["Efterklaringstanke, SRO","PE",10,0,0]
["Efterbehandlingsanlæg (sandfilter), Konstruktioner","PE",60,0,0]
["Efterbehandlingsanlæg (sandfilter), Mek/EL","PE",20,0,0]
["Efterbehandlingsanlæg (sandfilter), SRO","PE",10,0,0]
["Renseanlæg >= 5.000 PE, Slambehandling"]
["Forafvanding, slam, Konstruktion","PE",60,0,{"$f":"D383","v":0}]
["Forafvanding, slam, Mek/EL","PE",20,0,{"$f":"D384","v":0}]
["Forafvanding, slam, SRO","PE",10,0,0]
["Rådnetanke, slam, Konstruktioner","PE",60,0,0]
["Rådnetanke, slam, Mek/EL","PE",20,0,0]
["Rådnetanke, slam, SRO","PE",10,0,0]
["Gasdisponering, Konstruktioner","PE",60,0,0]
["Gasdisponering, Mek/EL","PE",20,0,0]
["Gasdisponering, SRO","PE",10,0,0]
["Gasdisponering - elproduktionsanlæg, Konstruktioner","PE",60,0,0]
["Gasdisponering - elproduktionsanlæg, Mek/EL","PE",20,0,0]
["Gasdisponering - elproduktionsanlæg, SRO","PE",10,0,0]
["Slutafvanding, slam - lavteknologisk (slambede), Konstruktioner","PE",60,0,0]
["Slutafvanding, slam - lavteknologisk (slambede), Mek/EL","PE",20,0,0]
["Slutafvanding, slam - lavteknologisk (slambede), SRO","PE",10,0,0]
["Slutafvanding, slam - højteknologisk (centrifuger), Konstruktioner","PE",60,0,0]
["Slutafvanding, slam - højteknologisk (centrifuger), Mek/El","PE",20,0,0]
["Slutafvanding, slam - højteknologisk (centrifuger), SRO","PE",10,0,0]
["Renseanlæg >= 5.000 PE, Slamdisponering"]
["Slutdisponering, slam - lavteknologisk (slammineralisering), Konstruktioner","PE",60,0,{"$f":"D402","v":0}]
["Slutdisponering, slam - lavteknologisk (slammineralisering), Mek/EL","PE",20,0,{"$f":"D403","v":0}]
["Slutdisponering, slam - lavteknologisk (slammineralisering), SRO","PE",10,0,0]
["Slutdisponering, slam - højteknologisk (slamtørring), Konstruktioner","PE",60,0,0]
["Slutdisponering, slam - højteknologisk (slamtørring), Mek/EL","PE",20,0,0]
["Slutdisponering, slam - højteknologisk (slamtørring), SRO","PE",10,0,0]
["Slutdisponering, slam - højteknologisk (slamtørring og -forbrænding), Konstruktioner","PE",60,0,0]
["Slutdisponering, slam - højteknologisk (slamtørring og -forbrænding), Mek/EL","PE",20,0,0]
["Slutdisponering, slam - højteknologisk (slamtørring og -forbrænding), SRO","PE",10,0,0]
["Renseanlæg 9"]
["Mindre renseanlæg"]
["Mindre renseanlæg < 5.000 PE uden mulighed for opdeling","PE",40,1500,{"$f":"D413","v":1500},"Vejrup Renseanlæg"]
["Renseanlæg >= 5.000 PE, Vandbehandling"]
["Indløb med riste, Konstruktioner","PE",60,0,{"$f":"D415","v":0}]
["Indløb med riste, Mek/EL","PE",20,0,{"$f":"D416","v":0}]
["Indløb med riste, SRO","PE",10,0,0]
["Sand- og fedtfang, Kontruktioner","PE",60,0,0]
["Sand- og fedtfang, Mek/EL","PE",20,0,0]
["Sand- og fedtfang, SRO","PE",10,0,0]
["Forklaring, Konstruktioner","PE",60,0,0]
["Forklaring, Mek/EL","PE",20,0,0]
["Forklaring, SRO","PE",10,0,0]
["Beluftningstanke, Konstruktioner","PE",60,0,0]
["Beluftningstanke, Mek/EL","PE",20,0,0]
["Beluftningstanke, SRO","PE",10,0,0]
["Efterklaringstanke, Konstruktioner","PE",60,0,0]
["Efterklaringstanke, Mek/El","PE",20,0,0]
["Efterklaringstanke, SRO","PE",10,0,0]
["Efterbehandlingsanlæg (sandfilter), Konstruktioner","PE",60,0,0]
["Efterbehandlingsanlæg (sandfilter), Mek/EL","PE",20,0,0]
["Efterbehandlingsanlæg (sandfilter), SRO","PE",10,0,0]
["Renseanlæg >= 5.000 PE, Slambehandling"]
["Forafvanding, slam, Konstruktion","PE",60,0,{"$f":"D434","v":0}]
["Forafvanding, slam, Mek/EL","PE",20,0,{"$f":"D435","v":0}]
["Forafvanding, slam, SRO","PE",10,0,0]
["Rådnetanke, slam, Konstruktioner","PE",60,0,0]
["Rådnetanke, slam, Mek/EL","PE",20,0,0]
["Rådnetanke, slam, SRO","PE",10,0,0]
["Gasdisponering, Konstruktioner","PE",60,0,0]
["Gasdisponering, Mek/EL","PE",20,0,0]
["Gasdisponering, SRO","PE",10,0,0]
["Gasdisponering - elproduktionsanlæg, Konstruktioner","PE",60,0,0]
["Gasdisponering - elproduktionsanlæg, Mek/EL","PE",20,0,0]
["Gasdisponering - elproduktionsanlæg, SRO","PE",10,0,0]
["Slutafvanding, slam - lavteknologisk (slambede), Konstruktioner","PE",60,0,0]
["Slutafvanding, slam - lavteknologisk (slambede), Mek/EL","PE",20,0,0]
["Slutafvanding, slam - lavteknologisk (slambede), SRO","PE",10,0,0]
["Slutafvanding, slam - højteknologisk (centrifuger), Konstruktioner","PE",60,0,0]
["Slutafvanding, slam - højteknologisk (centrifuger), Mek/El","PE",20,0,0]
["Slutafvanding, slam - højteknologisk (centrifuger), SRO","PE",10,0,0]
["Renseanlæg >= 5.000 PE, Slamdisponering"]
["Slutdisponering, slam - lavteknologisk (slammineralisering), Konstruktioner","PE",60,0,{"$f":"D453","v":0}]
["Slutdisponering, slam - lavteknologisk (slammineralisering), Mek/EL","PE",20,0,{"$f":"D454","v":0}]
["Slutdisponering, slam - lavteknologisk (slammineralisering), SRO","PE",10,0,0]
["Slutdisponering, slam - højteknologisk (slamtørring), Konstruktioner","PE",60,0,0]
["Slutdisponering, slam - højteknologisk (slamtørring), Mek/EL","PE",20,0,0]
["Slutdisponering, slam - højteknologisk (slamtørring), SRO","PE",10,0,0]
["Slutdisponering, slam - højteknologisk (slamtørring og -forbrænding), Konstruktioner","PE",60,0,0]
["Slutdisponering, slam - højteknologisk (slamtørring og -forbrænding), Mek/EL","PE",20,0,0]
["Slutdisponering, slam - højteknologisk (slamtørring og -forbrænding), SRO","PE",10,0,0]
["Renseanlæg 10"]
["Mindre renseanlæg"]
["Mindre renseanlæg < 5.000 PE uden mulighed for opdeling","PE",40,0,{"$f":"D464","v":0}]
["Renseanlæg >= 5.000 PE, Vandbehandling"]
["Indløb med riste, Konstruktioner","PE",60,0,{"$f":"D466","v":0}]
["Indløb med riste, Mek/EL","PE",20,0,{"$f":"D467","v":0}]
["Indløb med riste, SRO","PE",10,0,0]
["Sand- og fedtfang, Kontruktioner","PE",60,0,0]
["Sand- og fedtfang, Mek/EL","PE",20,0,0]
["Sand- og fedtfang, SRO","PE",10,0,0]
["Forklaring, Konstruktioner","PE",60,0,0]
["Forklaring, Mek/EL","PE",20,0,0]
["Forklaring, SRO","PE",10,0,0]
["Beluftningstanke, Konstruktioner","PE",60,0,0]
["Beluftningstanke, Mek/EL","PE",20,0,0]
["Beluftningstanke, SRO","PE",10,0,0]
["Efterklaringstanke, Konstruktioner","PE",60,0,0]
["Efterklaringstanke, Mek/El","PE",20,0,0]
["Efterklaringstanke, SRO","PE",10,0,0]
["Efterbehandlingsanlæg (sandfilter), Konstruktioner","PE",60,0,0]
["Efterbehandlingsanlæg (sandfilter), Mek/EL","PE",20,0,0]
["Efterbehandlingsanlæg (sandfilter), SRO","PE",10,0,0]
["Renseanlæg >= 5.000 PE, Slambehandling"]
["Forafvanding, slam, Konstruktion","PE",60,0,{"$f":"D485","v":0}]
["Forafvanding, slam, Mek/EL","PE",20,0,{"$f":"D486","v":0}]
["Forafvanding, slam, SRO","PE",10,0,0]
["Rådnetanke, slam, Konstruktioner","PE",60,0,0]
["Rådnetanke, slam, Mek/EL","PE",20,0,0]
["Rådnetanke, slam, SRO","PE",10,0,0]
["Gasdisponering, Konstruktioner","PE",60,0,0]
["Gasdisponering, Mek/EL","PE",20,0,0]
["Gasdisponering, SRO","PE",10,0,0]
["Gasdisponering - elproduktionsanlæg, Konstruktioner","PE",60,0,0]
["Gasdisponering - elproduktionsanlæg, Mek/EL","PE",20,0,0]
["Gasdisponering - elproduktionsanlæg, SRO","PE",10,0,0]
["Slutafvanding, slam - lavteknologisk (slambede), Konstruktioner","PE",60,0,0]
["Slutafvanding, slam - lavteknologisk (slambede), Mek/EL","PE",20,0,0]
["Slutafvanding, slam - lavteknologisk (slambede), SRO","PE",10,0,0]
["Slutafvanding, slam - højteknologisk (centrifuger), Konstruktioner","PE",60,0,0]
["Slutafvanding, slam - højteknologisk (centrifuger), Mek/El","PE",20,0,0]
["Slutafvanding, slam - højteknologisk (centrifuger), SRO","PE",10,0,0]
["Renseanlæg >= 5.000 PE, Slamdisponering"]
["Slutdisponering, slam - lavteknologisk (slammineralisering), Konstruktioner","PE",60,0,{"$f":"D504","v":0}]
["Slutdisponering, slam - lavteknologisk (slammineralisering), Mek/EL","PE",20,0,{"$f":"D505","v":0}]
["Slutdisponering, slam - lavteknologisk (slammineralisering), SRO","PE",10,0,0]
["Slutdisponering, slam - højteknologisk (slamtørring), Konstruktioner","PE",60,0,0]
["Slutdisponering, slam - højteknologisk (slamtørring), Mek/EL","PE",20,0,0]
["Slutdisponering, slam - højteknologisk (slamtørring), SRO","PE",10,0,0]
["Slutdisponering, slam - højteknologisk (slamtørring og -forbrænding), Konstruktioner","PE",60,0,0]
["Slutdisponering, slam - højteknologisk (slamtørring og -forbrænding), Mek/EL","PE",20,0,0]
["Slutdisponering, slam - højteknologisk (slamtørring og -forbrænding), SRO","PE",10,0,0]
["Mindre renseanlæg"]
["Mindre renseanlæg < 5.000 PE uden mulighed for opdeling","PE",40,935,{"$f":"D514","v":935},"Endrup Renseanlæg"]
["Renseanlæg >= 5.000 PE, Vandbehandling"]
["Indløb med riste, Konstruktioner","PE",60,0,{"$f":"D516","v":0}]
["Indløb med riste, Mek/EL","PE",20,0,{"$f":"D517","v":0}]
["Indløb med riste, SRO","PE",10,0,0]
["Sand- og fedtfang, Kontruktioner","PE",60,0,0]
["Sand- og fedtfang, Mek/EL","PE",20,0,0]
["Sand- og fedtfang, SRO","PE",10,0,0]
["Forklaring, Konstruktioner","PE",60,0,0]
["Forklaring, Mek/EL","PE",20,0,0]
["Forklaring, SRO","PE",10,0,0]
["Beluftningstanke, Konstruktioner","PE",60,0,0]
["Beluftningstanke, Mek/EL","PE",20,0,0]
["Beluftningstanke, SRO","PE",10,0,0]
["Efterklaringstanke, Konstruktioner","PE",60,0,0]
["Efterklaringstanke, Mek/El","PE",20,0,0]
["Efterklaringstanke, SRO","PE",10,0,0]
["Efterbehandlingsanlæg (sandfilter), Konstruktioner","PE",60,0,0]
["Efterbehandlingsanlæg (sandfilter), Mek/EL","PE",20,0,0]
["Efterbehandlingsanlæg (sandfilter), SRO","PE",10,0,0]
["Renseanlæg >= 5.000 PE, Slambehandling"]
["Forafvanding, slam, Konstruktion","PE",60,0,{"$f":"D535","v":0}]
["Forafvanding, slam, Mek/EL","PE",20,0,{"$f":"D536","v":0}]
["Forafvanding, slam, SRO","PE",10,0,0]
["Rådnetanke, slam, Konstruktioner","PE",60,0,0]
["Rådnetanke, slam, Mek/EL","PE",20,0,0]
["Rådnetanke, slam, SRO","PE",10,0,0]
["Gasdisponering, Konstruktioner","PE",60,0,0]
["Gasdisponering, Mek/EL","PE",20,0,0]
["Gasdisponering, SRO","PE",10,0,0]
["Gasdisponering - elproduktionsanlæg, Konstruktioner","PE",60,0,0]
["Gasdisponering - elproduktionsanlæg, Mek/EL","PE",20,0,0]
["Gasdisponering - elproduktionsanlæg, SRO","PE",10,0,0]
["Slutafvanding, slam - lavteknologisk (slambede), Konstruktioner","PE",60,0,0]
["Slutafvanding, slam - lavteknologisk (slambede), Mek/EL","PE",20,0,0]
["Slutafvanding, slam - lavteknologisk (slambede), SRO","PE",10,0,0]
["Slutafvanding, slam - højteknologisk (centrifuger), Konstruktioner","PE",60,0,0]
["Slutafvanding, slam - højteknologisk (centrifuger), Mek/El","PE",20,0,0]
["Slutafvanding, slam - højteknologisk (centrifuger), SRO","PE",10,0,0]
["Renseanlæg >= 5.000 PE, Slamdisponering"]
["Slutdisponering, slam - lavteknologisk (slammineralisering), Konstruktioner","PE",60,0,{"$f":"D554","v":0}]
["Slutdisponering, slam - lavteknologisk (slammineralisering), Mek/EL","PE",20,0,{"$f":"D555","v":0}]
["Slutdisponering, slam - lavteknologisk (slammineralisering), SRO","PE",10,0,0]
["Slutdisponering, slam - højteknologisk (slamtørring), Konstruktioner","PE",60,0,0]
["Slutdisponering, slam - højteknologisk (slamtørring), Mek/EL","PE",20,0,0]
["Slutdisponering, slam - højteknologisk (slamtørring), SRO","PE",10,0,0]
["Slutdisponering, slam - højteknologisk (slamtørring og -forbrænding), Konstruktioner","PE",60,0,0]
["Slutdisponering, slam - højteknologisk (slamtørring og -forbrænding), Mek/EL","PE",20,0,0]
["Slutdisponering, slam - højteknologisk (slamtørring og -forbrænding), SRO","PE",10,0,0]
[]
["Renseanlæg 11"]
["Mindre renseanlæg"]
["Mindre renseanlæg < 5.000 PE uden mulighed for opdeling","PE",40,320,{"$f":"D566","v":320},"Mandø Renseanlæg"]
["Renseanlæg >= 5.000 PE, Vandbehandling"]
["Indløb med riste, Konstruktioner","PE",60,0,{"$f":"D568","v":0}]
["Indløb med riste, Mek/EL","PE",20,0,{"$f":"D569","v":0}]
["Indløb med riste, SRO","PE",10,0,0]
["Sand- og fedtfang, Kontruktioner","PE",60,0,0]
["Sand- og fedtfang, Mek/EL","PE",20,0,0]
["Sand- og fedtfang, SRO","PE",10,0,0]
["Forklaring, Konstruktioner","PE",60,0,0]
["Forklaring, Mek/EL","PE",20,0,0]
["Forklaring, SRO","PE",10,0,0]
["Beluftningstanke, Konstruktioner","PE",60,0,0]
["Beluftningstanke, Mek/EL","PE",20,0,0]
["Beluftningstanke, SRO","PE",10,0,0]
["Efterklaringstanke, Konstruktioner","PE",60,0,0]
["Efterklaringstanke, Mek/El","PE",20,0,0]
["Efterklaringstanke, SRO","PE",10,0,0]
["Efterbehandlingsanlæg (sandfilter), Konstruktioner","PE",60,0,0]
["Efterbehandlingsanlæg (sandfilter), Mek/EL","PE",20,0,0]
["Efterbehandlingsanlæg (sandfilter), SRO","PE",10,0,0]
["Renseanlæg >= 5.000 PE, Slambehandling"]
["Forafvanding, slam, Konstruktion","PE",60,0,{"$f":"D587","v":0}]
["Forafvanding, slam, Mek/EL","PE",20,0,{"$f":"D588","v":0}]
["Forafvanding, slam, SRO","PE",10,0,0]
["Rådnetanke, slam, Konstruktioner","PE",60,0,0]
["Rådnetanke, slam, Mek/EL","PE",20,0,0]
["Rådnetanke, slam, SRO","PE",10,0,0]
["Gasdisponering, Konstruktioner","PE",60,0,0]
["Gasdisponering, Mek/EL","PE",20,0,0]
["Gasdisponering, SRO","PE",10,0,0]
["Gasdisponering - elproduktionsanlæg, Konstruktioner","PE",60,0,0]
["Gasdisponering - elproduktionsanlæg, Mek/EL","PE",20,0,0]
["Gasdisponering - elproduktionsanlæg, SRO","PE",10,0,0]
["Slutafvanding, slam - lavteknologisk (slambede), Konstruktioner","PE",60,0,0]
["Slutafvanding, slam - lavteknologisk (slambede), Mek/EL","PE",20,0,0]
["Slutafvanding, slam - lavteknologisk (slambede), SRO","PE",10,0,0]
["Slutafvanding, slam - højteknologisk (centrifuger), Konstruktioner","PE",60,0,0]
["Slutafvanding, slam - højteknologisk (centrifuger), Mek/El","PE",20,0,0]
["Slutafvanding, slam - højteknologisk (centrifuger), SRO","PE",10,0,0]
["Renseanlæg >= 5.000 PE, Slamdisponering"]
["Slutdisponering, slam - lavteknologisk (slammineralisering), Konstruktioner","PE",60,0,{"$f":"D606","v":0}]
["Slutdisponering, slam - lavteknologisk (slammineralisering), Mek/EL","PE",20,0,{"$f":"D607","v":0}]
["Slutdisponering, slam - lavteknologisk (slammineralisering), SRO","PE",10,0,0]
["Slutdisponering, slam - højteknologisk (slamtørring), Konstruktioner","PE",60,0,0]
["Slutdisponering, slam - højteknologisk (slamtørring), Mek/EL","PE",20,0,0]
["Slutdisponering, slam - højteknologisk (slamtørring), SRO","PE",10,0,0]
["Slutdisponering, slam - højteknologisk (slamtørring og -forbrænding), Konstruktioner","PE",60,0,0]
["Slutdisponering, slam - højteknologisk (slamtørring og -forbrænding), Mek/EL","PE",20,0,0]
["Slutdisponering, slam - højteknologisk (slamtørring og -forbrænding), SRO","PE",10,0,0]
["Renseanlæg 12"]
["Mindre renseanlæg"]
["Mindre renseanlæg < 5.000 PE uden mulighed for opdeling","PE",40,5,null,"Kontraktligt medlem Gl. Liftstrupvej 30"]
["Renseanlæg >= 5.000 PE, Vandbehandling"]
["Indløb med riste, Konstruktioner","PE",60,0]
["Indløb med riste, Mek/EL","PE",20,0]
["Indløb med riste, SRO","PE",10,0]
["Sand- og fedtfang, Kontruktioner","PE",60,0]
["Sand- og fedtfang, Mek/EL","PE",20,0]
["Sand- og fedtfang, SRO","PE",10,0]
["Forklaring, Konstruktioner","PE",60,0]
["Forklaring, Mek/EL","PE",20,0]
["Forklaring, SRO","PE",10,0]
["Beluftningstanke, Konstruktioner","PE",60,0]
["Beluftningstanke, Mek/EL","PE",20,0]
["Beluftningstanke, SRO","PE",10,0]
["Efterklaringstanke, Konstruktioner","PE",60,0]
["Efterklaringstanke, Mek/El","PE",20,0]
["Efterklaringstanke, SRO","PE",10,0]
["Efterbehandlingsanlæg (sandfilter), Konstruktioner","PE",60,0]
["Efterbehandlingsanlæg (sandfilter), Mek/EL","PE",20,0]
["Efterbehandlingsanlæg (sandfilter), SRO","PE",10,0]
["Renseanlæg >= 5.000 PE, Slambehandling"]
["Forafvanding, slam, Konstruktion","PE",60,0]
["Forafvanding, slam, Mek/EL","PE",20,0]
["Forafvanding, slam, SRO","PE",10,0]
["Rådnetanke, slam, Konstruktioner","PE",60,0]
["Rådnetanke, slam, Mek/EL","PE",20,0]
["Rådnetanke, slam, SRO","PE",10,0]
["Gasdisponering, Konstruktioner","PE",60,0]
["Gasdisponering, Mek/EL","PE",20,0]
["Gasdisponering, SRO","PE",10,0]
["Gasdisponering - elproduktionsanlæg, Konstruktioner","PE",60,0]
["Gasdisponering - elproduktionsanlæg, Mek/EL","PE",20,0]
["Gasdisponering - elproduktionsanlæg, SRO","PE",10,0]
["Slutafvanding, slam - lavteknologisk (slambede), Konstruktioner","PE",60,0]
["Slutafvanding, slam - lavteknologisk (slambede), Mek/EL","PE",20,0]
["Slutafvanding, slam - lavteknologisk (slambede), SRO","PE",10,0]
["Slutafvanding, slam - højteknologisk (centrifuger), Konstruktioner","PE",60,0]
["Slutafvanding, slam - højteknologisk (centrifuger), Mek/El","PE",20,0]
["Slutafvanding, slam - højteknologisk (centrifuger), SRO","PE",10,0]
["Renseanlæg >= 5.000 PE, Slamdisponering"]
["Slutdisponering, slam - lavteknologisk (slammineralisering), Konstruktioner","PE",60,0]
["Slutdisponering, slam - lavteknologisk (slammineralisering), Mek/EL","PE",20,0]
["Slutdisponering, slam - lavteknologisk (slammineralisering), SRO","PE",10,0]
["Slutdisponering, slam - højteknologisk (slamtørring), Konstruktioner","PE",60,0]
["Slutdisponering, slam - højteknologisk (slamtørring), Mek/EL","PE",20,0]
["Slutdisponering, slam - højteknologisk (slamtørring), SRO","PE",10,0]
["Slutdisponering, slam - højteknologisk (slamtørring og -forbrænding), Konstruktioner","PE",60,0]
["Slutdisponering, slam - højteknologisk (slamtørring og -forbrænding), Mek/EL","PE",20,0]
["Slutdisponering, slam - højteknologisk (slamtørring og -forbrænding), SRO","PE",10,0]
["Renseanlæg 13"]
["Mindre renseanlæg"]
["Mindre renseanlæg < 5.000 PE uden mulighed for opdeling","PE",40,5,null,"Kontraktligt medlem Gl. Liftstrupvej 34+36"]
["Renseanlæg >= 5.000 PE, Vandbehandling"]
["Indløb med riste, Konstruktioner","PE",60,0]
["Indløb med riste, Mek/EL","PE",20,0]
["Indløb med riste, SRO","PE",10,0]
["Sand- og fedtfang, Kontruktioner","PE",60,0]
["Sand- og fedtfang, Mek/EL","PE",20,0]
["Sand- og fedtfang, SRO","PE",10,0]
["Forklaring, Konstruktioner","PE",60,0]
["Forklaring, Mek/EL","PE",20,0]
["Forklaring, SRO","PE",10,0]
["Beluftningstanke, Konstruktioner","PE",60,0]
["Beluftningstanke, Mek/EL","PE",20,0]
["Beluftningstanke, SRO","PE",10,0]
["Efterklaringstanke, Konstruktioner","PE",60,0]
["Efterklaringstanke, Mek/El","PE",20,0]
["Efterklaringstanke, SRO","PE",10,0]
["Efterbehandlingsanlæg (sandfilter), Konstruktioner","PE",60,0]
["Efterbehandlingsanlæg (sandfilter), Mek/EL","PE",20,0]
["Efterbehandlingsanlæg (sandfilter), SRO","PE",10,0]
["Renseanlæg >= 5.000 PE, Slambehandling"]
["Forafvanding, slam, Konstruktion","PE",60,0]
["Forafvanding, slam, Mek/EL","PE",20,0]
["Forafvanding, slam, SRO","PE",10,0]
["Rådnetanke, slam, Konstruktioner","PE",60,0]
["Rådnetanke, slam, Mek/EL","PE",20,0]
["Rådnetanke, slam, SRO","PE",10,0]
["Gasdisponering, Konstruktioner","PE",60,0]
["Gasdisponering, Mek/EL","PE",20,0]
["Gasdisponering, SRO","PE",10,0]
["Gasdisponering - elproduktionsanlæg, Konstruktioner","PE",60,0]
["Gasdisponering - elproduktionsanlæg, Mek/EL","PE",20,0]
["Gasdisponering - elproduktionsanlæg, SRO","PE",10,0]
["Slutafvanding, slam - lavteknologisk (slambede), Konstruktioner","PE",60,0]
["Slutafvanding, slam - lavteknologisk (slambede), Mek/EL","PE",20,0]
["Slutafvanding, slam - lavteknologisk (slambede), SRO","PE",10,0]
["Slutafvanding, slam - højteknologisk (centrifuger), Konstruktioner","PE",60,0]
["Slutafvanding, slam - højteknologisk (centrifuger), Mek/El","PE",20,0]
["Slutafvanding, slam - højteknologisk (centrifuger), SRO","PE",10,0]
["Renseanlæg >= 5.000 PE, Slamdisponering"]
["Slutdisponering, slam - lavteknologisk (slammineralisering), Konstruktioner","PE",60,0]
["Slutdisponering, slam - lavteknologisk (slammineralisering), Mek/EL","PE",20,0]
["Slutdisponering, slam - lavteknologisk (slammineralisering), SRO","PE",10,0]
["Slutdisponering, slam - højteknologisk (slamtørring), Konstruktioner","PE",60,0]
["Slutdisponering, slam - højteknologisk (slamtørring), Mek/EL","PE",20,0]
["Slutdisponering, slam - højteknologisk (slamtørring), SRO","PE",10,0]
["Slutdisponering, slam - højteknologisk (slamtørring og -forbrænding), Konstruktioner","PE",60,0]
["Slutdisponering, slam - højteknologisk (slamtørring og -forbrænding), Mek/EL","PE",20,0]
["Slutdisponering, slam - højteknologisk (slamtørring og -forbrænding), SRO","PE",10,0]
["Renseanlæg 14"]
["Mindre renseanlæg"]
["Mindre renseanlæg < 5.000 PE uden mulighed for opdeling","PE",40,5,null,"Kontraktligt medlem Nebelvej 12"]
["Renseanlæg >= 5.000 PE, Vandbehandling"]
["Indløb med riste, Konstruktioner","PE",60,0]
["Indløb med riste, Mek/EL","PE",20,0]
["Indløb med riste, SRO","PE",10,0]
["Sand- og fedtfang, Kontruktioner","PE",60,0]
["Sand- og fedtfang, Mek/EL","PE",20,0]
["Sand- og fedtfang, SRO","PE",10,0]
["Forklaring, Konstruktioner","PE",60,0]
["Forklaring, Mek/EL","PE",20,0]
["Forklaring, SRO","PE",10,0]
["Beluftningstanke, Konstruktioner","PE",60,0]
["Beluftningstanke, Mek/EL","PE",20,0]
["Beluftningstanke, SRO","PE",10,0]
["Efterklaringstanke, Konstruktioner","PE",60,0]
["Efterklaringstanke, Mek/El","PE",20,0]
["Efterklaringstanke, SRO","PE",10,0]
["Efterbehandlingsanlæg (sandfilter), Konstruktioner","PE",60,0]
["Efterbehandlingsanlæg (sandfilter), Mek/EL","PE",20,0]
["Efterbehandlingsanlæg (sandfilter), SRO","PE",10,0]
["Renseanlæg >= 5.000 PE, Slambehandling"]
["Forafvanding, slam, Konstruktion","PE",60,0]
["Forafvanding, slam, Mek/EL","PE",20,0]
["Forafvanding, slam, SRO","PE",10,0]
["Rådnetanke, slam, Konstruktioner","PE",60,0]
["Rådnetanke, slam, Mek/EL","PE",20,0]
["Rådnetanke, slam, SRO","PE",10,0]
["Gasdisponering, Konstruktioner","PE",60,0]
["Gasdisponering, Mek/EL","PE",20,0]
["Gasdisponering, SRO","PE",10,0]
["Gasdisponering - elproduktionsanlæg, Konstruktioner","PE",60,0]
["Gasdisponering - elproduktionsanlæg, Mek/EL","PE",20,0]
["Gasdisponering - elproduktionsanlæg, SRO","PE",10,0]
["Slutafvanding, slam - lavteknologisk (slambede), Konstruktioner","PE",60,0]
["Slutafvanding, slam - lavteknologisk (slambede), Mek/EL","PE",20,0]
["Slutafvanding, slam - lavteknologisk (slambede), SRO","PE",10,0]
["Slutafvanding, slam - højteknologisk (centrifuger), Konstruktioner","PE",60,0]
["Slutafvanding, slam - højteknologisk (centrifuger), Mek/El","PE",20,0]
["Slutafvanding, slam - højteknologisk (centrifuger), SRO","PE",10,0]
["Renseanlæg >= 5.000 PE, Slamdisponering"]
["Slutdisponering, slam - lavteknologisk (slammineralisering), Konstruktioner","PE",60,0]
["Slutdisponering, slam - lavteknologisk (slammineralisering), Mek/EL","PE",20,0]
["Slutdisponering, slam - lavteknologisk (slammineralisering), SRO","PE",10,0]
["Slutdisponering, slam - højteknologisk (slamtørring), Konstruktioner","PE",60,0]
["Slutdisponering, slam - højteknologisk (slamtørring), Mek/EL","PE",20,0]
["Slutdisponering, slam - højteknologisk (slamtørring), SRO","PE",10,0]
["Slutdisponering, slam - højteknologisk (slamtørring og -forbrænding), Konstruktioner","PE",60,0]
["Slutdisponering, slam - højteknologisk (slamtørring og -forbrænding), Mek/EL","PE",20,0]
["Slutdisponering, slam - højteknologisk (slamtørring og -forbrænding), SRO","PE",10,0]
["Renseanlæg 15"]
["Mindre renseanlæg"]
["Mindre renseanlæg < 5.000 PE uden mulighed for opdeling","PE",40,5,null,"Kontraktligt medlem Puggårdsvej 12"]
["Renseanlæg >= 5.000 PE, Vandbehandling"]
["Indløb med riste, Konstruktioner","PE",60,0]
["Indløb med riste, Mek/EL","PE",20,0]
["Indløb med riste, SRO","PE",10,0]
["Sand- og fedtfang, Kontruktioner","PE",60,0]
["Sand- og fedtfang, Mek/EL","PE",20,0]
["Sand- og fedtfang, SRO","PE",10,0]
["Forklaring, Konstruktioner","PE",60,0]
["Forklaring, Mek/EL","PE",20,0]
["Forklaring, SRO","PE",10,0]
["Beluftningstanke, Konstruktioner","PE",60,0]
["Beluftningstanke, Mek/EL","PE",20,0]
["Beluftningstanke, SRO","PE",10,0]
["Efterklaringstanke, Konstruktioner","PE",60,0]
["Efterklaringstanke, Mek/El","PE",20,0]
["Efterklaringstanke, SRO","PE",10,0]
["Efterbehandlingsanlæg (sandfilter), Konstruktioner","PE",60,0]
["Efterbehandlingsanlæg (sandfilter), Mek/EL","PE",20,0]
["Efterbehandlingsanlæg (sandfilter), SRO","PE",10,0]
["Renseanlæg >= 5.000 PE, Slambehandling"]
["Forafvanding, slam, Konstruktion","PE",60,0]
["Forafvanding, slam, Mek/EL","PE",20,0]
["Forafvanding, slam, SRO","PE",10,0]
["Rådnetanke, slam, Konstruktioner","PE",60,0]
["Rådnetanke, slam, Mek/EL","PE",20,0]
["Rådnetanke, slam, SRO","PE",10,0]
["Gasdisponering, Konstruktioner","PE",60,0]
["Gasdisponering, Mek/EL","PE",20,0]
["Gasdisponering, SRO","PE",10,0]
["Gasdisponering - elproduktionsanlæg, Konstruktioner","PE",60,0]
["Gasdisponering - elproduktionsanlæg, Mek/EL","PE",20,0]
["Gasdisponering - elproduktionsanlæg, SRO","PE",10,0]
["Slutafvanding, slam - lavteknologisk (slambede), Konstruktioner","PE",60,0]
["Slutafvanding, slam - lavteknologisk (slambede), Mek/EL","PE",20,0]
["Slutafvanding, slam - lavteknologisk (slambede), SRO","PE",10,0]
["Slutafvanding, slam - højteknologisk (centrifuger), Konstruktioner","PE",60,0]
["Slutafvanding, slam - højteknologisk (centrifuger), Mek/El","PE",20,0]
["Slutafvanding, slam - højteknologisk (centrifuger), SRO","PE",10,0]
["Renseanlæg >= 5.000 PE, Slamdisponering"]
["Slutdisponering, slam - lavteknologisk (slammineralisering), Konstruktioner","PE",60,0]
["Slutdisponering, slam - lavteknologisk (slammineralisering), Mek/EL","PE",20,0]
["Slutdisponering, slam - lavteknologisk (slammineralisering), SRO","PE",10,0]
["Slutdisponering, slam - højteknologisk (slamtørring), Konstruktioner","PE",60,0]
["Slutdisponering, slam - højteknologisk (slamtørring), Mek/EL","PE",20,0]
["Slutdisponering, slam - højteknologisk (slamtørring), SRO","PE",10,0]
["Slutdisponering, slam - højteknologisk (slamtørring og -forbrænding), Konstruktioner","PE",60,0]
["Slutdisponering, slam - højteknologisk (slamtørring og -forbrænding), Mek/EL","PE",20,0]
["Slutdisponering, slam - højteknologisk (slamtørring og -forbrænding), SRO","PE",10,0]
["Renseanlæg 16"]
["Mindre renseanlæg"]
["Mindre renseanlæg < 5.000 PE uden mulighed for opdeling","PE",40,5,null,"Kontraktligt medlem Hjortkærvej 7"]
["Renseanlæg >= 5.000 PE, Vandbehandling"]
["Indløb med riste, Konstruktioner","PE",60,0]
["Indløb med riste, Mek/EL","PE",20,0]
["Indløb med riste, SRO","PE",10,0]
["Sand- og fedtfang, Kontruktioner","PE",60,0]
["Sand- og fedtfang, Mek/EL","PE",20,0]
["Sand- og fedtfang, SRO","PE",10,0]
["Forklaring, Konstruktioner","PE",60,0]
["Forklaring, Mek/EL","PE",20,0]
["Forklaring, SRO","PE",10,0]
["Beluftningstanke, Konstruktioner","PE",60,0]
["Beluftningstanke, Mek/EL","PE",20,0]
["Beluftningstanke, SRO","PE",10,0]
["Efterklaringstanke, Konstruktioner","PE",60,0]
["Efterklaringstanke, Mek/El","PE",20,0]
["Efterklaringstanke, SRO","PE",10,0]
["Efterbehandlingsanlæg (sandfilter), Konstruktioner","PE",60,0]
["Efterbehandlingsanlæg (sandfilter), Mek/EL","PE",20,0]
["Efterbehandlingsanlæg (sandfilter), SRO","PE",10,0]
["Renseanlæg >= 5.000 PE, Slambehandling"]
["Forafvanding, slam, Konstruktion","PE",60,0]
["Forafvanding, slam, Mek/EL","PE",20,0]
["Forafvanding, slam, SRO","PE",10,0]
["Rådnetanke, slam, Konstruktioner","PE",60,0]
["Rådnetanke, slam, Mek/EL","PE",20,0]
["Rådnetanke, slam, SRO","PE",10,0]
["Gasdisponering, Konstruktioner","PE",60,0]
["Gasdisponering, Mek/EL","PE",20,0]
["Gasdisponering, SRO","PE",10,0]
["Gasdisponering - elproduktionsanlæg, Konstruktioner","PE",60,0]
["Gasdisponering - elproduktionsanlæg, Mek/EL","PE",20,0]
["Gasdisponering - elproduktionsanlæg, SRO","PE",10,0]
["Slutafvanding, slam - lavteknologisk (slambede), Konstruktioner","PE",60,0]
["Slutafvanding, slam - lavteknologisk (slambede), Mek/EL","PE",20,0]
["Slutafvanding, slam - lavteknologisk (slambede), SRO","PE",10,0]
["Slutafvanding, slam - højteknologisk (centrifuger), Konstruktioner","PE",60,0]
["Slutafvanding, slam - højteknologisk (centrifuger), Mek/El","PE",20,0]
["Slutafvanding, slam - højteknologisk (centrifuger), SRO","PE",10,0]
["Renseanlæg >= 5.000 PE, Slamdisponering"]
["Slutdisponering, slam - lavteknologisk (slammineralisering), Konstruktioner","PE",60,0]
["Slutdisponering, slam - lavteknologisk (slammineralisering), Mek/EL","PE",20,0]
["Slutdisponering, slam - lavteknologisk (slammineralisering), SRO","PE",10,0]
["Slutdisponering, slam - højteknologisk (slamtørring), Konstruktioner","PE",60,0]
["Slutdisponering, slam - højteknologisk (slamtørring), Mek/EL","PE",20,0]
["Slutdisponering, slam - højteknologisk (slamtørring), SRO","PE",10,0]
["Slutdisponering, slam - højteknologisk (slamtørring og -forbrænding), Konstruktioner","PE",60,0]
["Slutdisponering, slam - højteknologisk (slamtørring og -forbrænding), Mek/EL","PE",20,0]
["Slutdisponering, slam - højteknologisk (slamtørring og -forbrænding), SRO","PE",10,0]
["Renseanlæg 17"]
["Mindre renseanlæg"]
["Mindre renseanlæg < 5.000 PE uden mulighed for opdeling","PE",40,0]
["Renseanlæg >= 5.000 PE, Vandbehandling"]
["Indløb med riste, Konstruktioner","PE",60,0]
["Indløb med riste, Mek/EL","PE",20,0]
["Indløb med riste, SRO","PE",10,0]
["Sand- og fedtfang, Kontruktioner","PE",60,0]
["Sand- og fedtfang, Mek/EL","PE",20,0]
["Sand- og fedtfang, SRO","PE",10,0]
["Forklaring, Konstruktioner","PE",60,0]
["Forklaring, Mek/EL","PE",20,0]
["Forklaring, SRO","PE",10,0]
["Beluftningstanke, Konstruktioner","PE",60,0]
["Beluftningstanke, Mek/EL","PE",20,0]
["Beluftningstanke, SRO","PE",10,0]
["Efterklaringstanke, Konstruktioner","PE",60,0]
["Efterklaringstanke, Mek/El","PE",20,0]
["Efterklaringstanke, SRO","PE",10,0]
["Efterbehandlingsanlæg (sandfilter), Konstruktioner","PE",60,0]
["Efterbehandlingsanlæg (sandfilter), Mek/EL","PE",20,0]
["Efterbehandlingsanlæg (sandfilter), SRO","PE",10,0]
["Renseanlæg >= 5.000 PE, Slambehandling"]
["Forafvanding, slam, Konstruktion","PE",60,0]
["Forafvanding, slam, Mek/EL","PE",20,0]
["Forafvanding, slam, SRO","PE",10,0]
["Rådnetanke, slam, Konstruktioner","PE",60,0]
["Rådnetanke, slam, Mek/EL","PE",20,0]
["Rådnetanke, slam, SRO","PE",10,0]
["Gasdisponering, Konstruktioner","PE",60,0]
["Gasdisponering, Mek/EL","PE",20,0]
["Gasdisponering, SRO","PE",10,0]
["Gasdisponering - elproduktionsanlæg, Konstruktioner","PE",60,0]
["Gasdisponering - elproduktionsanlæg, Mek/EL","PE",20,0]
["Gasdisponering - elproduktionsanlæg, SRO","PE",10,0]
["Slutafvanding, slam - lavteknologisk (slambede), Konstruktioner","PE",60,0]
["Slutafvanding, slam - lavteknologisk (slambede), Mek/EL","PE",20,0]
["Slutafvanding, slam - lavteknologisk (slambede), SRO","PE",10,0]
["Slutafvanding, slam - højteknologisk (centrifuger), Konstruktioner","PE",60,0]
["Slutafvanding, slam - højteknologisk (centrifuger), Mek/El","PE",20,0]
["Slutafvanding, slam - højteknologisk (centrifuger), SRO","PE",10,0]
["Renseanlæg >= 5.000 PE, Slamdisponering"]
["Slutdisponering, slam - lavteknologisk (slammineralisering), Konstruktioner","PE",60,0]
["Slutdisponering, slam - lavteknologisk (slammineralisering), Mek/EL","PE",20,0]
["Slutdisponering, slam - lavteknologisk (slammineralisering), SRO","PE",10,0]
["Slutdisponering, slam - højteknologisk (slamtørring), Konstruktioner","PE",60,0]
["Slutdisponering, slam - højteknologisk (slamtørring), Mek/EL","PE",20,0]
["Slutdisponering, slam - højteknologisk (slamtørring), SRO","PE",10,0]
["Slutdisponering, slam - højteknologisk (slamtørring og -forbrænding), Konstruktioner","PE",60,0]
["Slutdisponering, slam - højteknologisk (slamtørring og -forbrænding), Mek/EL","PE",20,0]
["Slutdisponering, slam - højteknologisk (slamtørring og -forbrænding), SRO","PE",10,0]
["Renseanlæg 18"]
["Mindre renseanlæg"]
["Mindre renseanlæg < 5.000 PE uden mulighed for opdeling","PE",40,0]
["Renseanlæg >= 5.000 PE, Vandbehandling"]
["Indløb med riste, Konstruktioner","PE",60,0]
["Indløb med riste, Mek/EL","PE",20,0]
["Indløb med riste, SRO","PE",10,0]
["Sand- og fedtfang, Kontruktioner","PE",60,0]
["Sand- og fedtfang, Mek/EL","PE",20,0]
["Sand- og fedtfang, SRO","PE",10,0]
["Forklaring, Konstruktioner","PE",60,0]
["Forklaring, Mek/EL","PE",20,0]
["Forklaring, SRO","PE",10,0]
["Beluftningstanke, Konstruktioner","PE",60,0]
["Beluftningstanke, Mek/EL","PE",20,0]
["Beluftningstanke, SRO","PE",10,0]
["Efterklaringstanke, Konstruktioner","PE",60,0]
["Efterklaringstanke, Mek/El","PE",20,0]
["Efterklaringstanke, SRO","PE",10,0]
["Efterbehandlingsanlæg (sandfilter), Konstruktioner","PE",60,0]
["Efterbehandlingsanlæg (sandfilter), Mek/EL","PE",20,0]
["Efterbehandlingsanlæg (sandfilter), SRO","PE",10,0]
["Renseanlæg >= 5.000 PE, Slambehandling"]
["Forafvanding, slam, Konstruktion","PE",60,0]
["Forafvanding, slam, Mek/EL","PE",20,0]
["Forafvanding, slam, SRO","PE",10,0]
["Rådnetanke, slam, Konstruktioner","PE",60,0]
["Rådnetanke, slam, Mek/EL","PE",20,0]
["Rådnetanke, slam, SRO","PE",10,0]
["Gasdisponering, Konstruktioner","PE",60,0]
["Gasdisponering, Mek/EL","PE",20,0]
["Gasdisponering, SRO","PE",10,0]
["Gasdisponering - elproduktionsanlæg, Konstruktioner","PE",60,0]
["Gasdisponering - elproduktionsanlæg, Mek/EL","PE",20,0]
["Gasdisponering - elproduktionsanlæg, SRO","PE",10,0]
["Slutafvanding, slam - lavteknologisk (slambede), Konstruktioner","PE",60,0]
["Slutafvanding, slam - lavteknologisk (slambede), Mek/EL","PE",20,0]
["Slutafvanding, slam - lavteknologisk (slambede), SRO","PE",10,0]
["Slutafvanding, slam - højteknologisk (centrifuger), Konstruktioner","PE",60,0]
["Slutafvanding, slam - højteknologisk (centrifuger), Mek/El","PE",20,0]
["Slutafvanding, slam - højteknologisk (centrifuger), SRO","PE",10,0]
["Renseanlæg >= 5.000 PE, Slamdisponering"]
["Slutdisponering, slam - lavteknologisk (slammineralisering), Konstruktioner","PE",60,0]
["Slutdisponering, slam - lavteknologisk (slammineralisering), Mek/EL","PE",20,0]
["Slutdisponering, slam - lavteknologisk (slammineralisering), SRO","PE",10,0]
["Slutdisponering, slam - højteknologisk (slamtørring), Konstruktioner","PE",60,0]
["Slutdisponering, slam - højteknologisk (slamtørring), Mek/EL","PE",20,0]
["Slutdisponering, slam - højteknologisk (slamtørring), SRO","PE",10,0]
["Slutdisponering, slam - højteknologisk (slamtørring og -forbrænding), Konstruktioner","PE",60,0]
["Slutdisponering, slam - højteknologisk (slamtørring og -forbrænding), Mek/EL","PE",20,0]
["Slutdisponering, slam - højteknologisk (slamtørring og -forbrænding), SRO","PE",10,0]
["Renseanlæg 19"]
["Mindre renseanlæg"]
["Mindre renseanlæg < 5.000 PE uden mulighed for opdeling","PE",40,0]
["Renseanlæg >= 5.000 PE, Vandbehandling"]
["Indløb med riste, Konstruktioner","PE",60,0]
["Indløb med riste, Mek/EL","PE",20,0]
["Indløb med riste, SRO","PE",10,0]
["Sand- og fedtfang, Kontruktioner","PE",60,0]
["Sand- og fedtfang, Mek/EL","PE",20,0]
["Sand- og fedtfang, SRO","PE",10,0]
["Forklaring, Konstruktioner","PE",60,0]
["Forklaring, Mek/EL","PE",20,0]
["Forklaring, SRO","PE",10,0]
["Beluftningstanke, Konstruktioner","PE",60,0]
["Beluftningstanke, Mek/EL","PE",20,0]
["Beluftningstanke, SRO","PE",10,0]
["Efterklaringstanke, Konstruktioner","PE",60,0]
["Efterklaringstanke, Mek/El","PE",20,0]
["Efterklaringstanke, SRO","PE",10,0]
["Efterbehandlingsanlæg (sandfilter), Konstruktioner","PE",60,0]
["Efterbehandlingsanlæg (sandfilter), Mek/EL","PE",20,0]
["Efterbehandlingsanlæg (sandfilter), SRO","PE",10,0]
["Renseanlæg >= 5.000 PE, Slambehandling"]
["Forafvanding, slam, Konstruktion","PE",60,0]
["Forafvanding, slam, Mek/EL","PE",20,0]
["Forafvanding, slam, SRO","PE",10,0]
["Rådnetanke, slam, Konstruktioner","PE",60,0]
["Rådnetanke, slam, Mek/EL","PE",20,0]
["Rådnetanke, slam, SRO","PE",10,0]
["Gasdisponering, Konstruktioner","PE",60,0]
["Gasdisponering, Mek/EL","PE",20,0]
["Gasdisponering, SRO","PE",10,0]
["Gasdisponering - elproduktionsanlæg, Konstruktioner","PE",60,0]
["Gasdisponering - elproduktionsanlæg, Mek/EL","PE",20,0]
["Gasdisponering - elproduktionsanlæg, SRO","PE",10,0]
["Slutafvanding, slam - lavteknologisk (slambede), Konstruktioner","PE",60,0]
["Slutafvanding, slam - lavteknologisk (slambede), Mek/EL","PE",20,0]
["Slutafvanding, slam - lavteknologisk (slambede), SRO","PE",10,0]
["Slutafvanding, slam - højteknologisk (centrifuger), Konstruktioner","PE",60,0]
["Slutafvanding, slam - højteknologisk (centrifuger), Mek/El","PE",20,0]
["Slutafvanding, slam - højteknologisk (centrifuger), SRO","PE",10,0]
["Renseanlæg >= 5.000 PE, Slamdisponering"]
["Slutdisponering, slam - lavteknologisk (slammineralisering), Konstruktioner","PE",60,0]
["Slutdisponering, slam - lavteknologisk (slammineralisering), Mek/EL","PE",20,0]
["Slutdisponering, slam - lavteknologisk (slammineralisering), SRO","PE",10,0]
["Slutdisponering, slam - højteknologisk (slamtørring), Konstruktioner","PE",60,0]
["Slutdisponering, slam - højteknologisk (slamtørring), Mek/EL","PE",20,0]
["Slutdisponering, slam - højteknologisk (slamtørring), SRO","PE",10,0]
["Slutdisponering, slam - højteknologisk (slamtørring og -forbrænding), Konstruktioner","PE",60,0]
["Slutdisponering, slam - højteknologisk (slamtørring og -forbrænding), Mek/EL","PE",20,0]
["Slutdisponering, slam - højteknologisk (slamtørring og -forbrænding), SRO","PE",10,0]
["Renseanlæg 20"]
["Mindre renseanlæg"]
["Mindre renseanlæg < 5.000 PE uden mulighed for opdeling","PE",40,0]
["Renseanlæg >= 5.000 PE, Vandbehandling"]
["Indløb med riste, Konstruktioner","PE",60,0]
["Indløb med riste, Mek/EL","PE",20,0]
["Indløb med riste, SRO","PE",10,0]
["Sand- og fedtfang, Kontruktioner","PE",60,0]
["Sand- og fedtfang, Mek/EL","PE",20,0]
["Sand- og fedtfang, SRO","PE",10,0]
["Forklaring, Konstruktioner","PE",60,0]
["Forklaring, Mek/EL","PE",20,0]
["Forklaring, SRO","PE",10,0]
["Beluftningstanke, Konstruktioner","PE",60,0]
["Beluftningstanke, Mek/EL","PE",20,0]
["Beluftningstanke, SRO","PE",10,0]
["Efterklaringstanke, Konstruktioner","PE",60,0]
["Efterklaringstanke, Mek/El","PE",20,0]
["Efterklaringstanke, SRO","PE",10,0]
["Efterbehandlingsanlæg (sandfilter), Konstruktioner","PE",60,0]
["Efterbehandlingsanlæg (sandfilter), Mek/EL","PE",20,0]
["Efterbehandlingsanlæg (sandfilter), SRO","PE",10,0]
["Renseanlæg >= 5.000 PE, Slambehandling"]
["Forafvanding, slam, Konstruktion","PE",60,0]
["Forafvanding, slam, Mek/EL","PE",20,0]
["Forafvanding, slam, SRO","PE",10,0]
["Rådnetanke, slam, Konstruktioner","PE",60,0]
["Rådnetanke, slam, Mek/EL","PE",20,0]
["Rådnetanke, slam, SRO","PE",10,0]
["Gasdisponering, Konstruktioner","PE",60,0]
["Gasdisponering, Mek/EL","PE",20,0]
["Gasdisponering, SRO","PE",10,0]
["Gasdisponering - elproduktionsanlæg, Konstruktioner","PE",60,0]
["Gasdisponering - elproduktionsanlæg, Mek/EL","PE",20,0]
["Gasdisponering - elproduktionsanlæg, SRO","PE",10,0]
["Slutafvanding, slam - lavteknologisk (slambede), Konstruktioner","PE",60,0]
["Slutafvanding, slam - lavteknologisk (slambede), Mek/EL","PE",20,0]
["Slutafvanding, slam - lavteknologisk (slambede), SRO","PE",10,0]
["Slutafvanding, slam - højteknologisk (centrifuger), Konstruktioner","PE",60,0]
["Slutafvanding, slam - højteknologisk (centrifuger), Mek/El","PE",20,0]
["Slutafvanding, slam - højteknologisk (centrifuger), SRO","PE",10,0]
["Renseanlæg >= 5.000 PE, Slamdisponering"]
["Slutdisponering, slam - lavteknologisk (slammineralisering), Konstruktioner","PE",60,0]
["Slutdisponering, slam - lavteknologisk (slammineralisering), Mek/EL","PE",20,0]
["Slutdisponering, slam - lavteknologisk (slammineralisering), SRO","PE",10,0]
["Slutdisponering, slam - højteknologisk (slamtørring), Konstruktioner","PE",60,0]
["Slutdisponering, slam - højteknologisk (slamtørring), Mek/EL","PE",20,0]
["Slutdisponering, slam - højteknologisk (slamtørring), SRO","PE",10,0]
["Slutdisponering, slam - højteknologisk (slamtørring og -forbrænding), Konstruktioner","PE",60,0]
["Slutdisponering, slam - højteknologisk (slamtørring og -forbrænding), Mek/EL","PE",20,0]
["Slutdisponering, slam - højteknologisk (slamtørring og -forbrænding), SRO","PE",10,0]
["Renseanlæg 21"]
["Mindre renseanlæg"]
["Mindre renseanlæg < 5.000 PE uden mulighed for opdeling","PE",40,0]
["Renseanlæg >= 5.000 PE, Vandbehandling"]
["Indløb med riste, Konstruktioner","PE",60,0]
["Indløb med riste, Mek/EL","PE",20,0]
["Indløb med riste, SRO","PE",10,0]
["Sand- og fedtfang, Kontruktioner","PE",60,0]
["Sand- og fedtfang, Mek/EL","PE",20,0]
["Sand- og fedtfang, SRO","PE",10,0]
["Forklaring, Konstruktioner","PE",60,0]
["Forklaring, Mek/EL","PE",20,0]
["Forklaring, SRO","PE",10,0]
["Beluftningstanke, Konstruktioner","PE",60,0]
["Beluftningstanke, Mek/EL","PE",20,0]
["Beluftningstanke, SRO","PE",10,0]
["Efterklaringstanke, Konstruktioner","PE",60,0]
["Efterklaringstanke, Mek/El","PE",20,0]
["Efterklaringstanke, SRO","PE",10,0]
["Efterbehandlingsanlæg (sandfilter), Konstruktioner","PE",60,0]
["Efterbehandlingsanlæg (sandfilter), Mek/EL","PE",20,0]
["Efterbehandlingsanlæg (sandfilter), SRO","PE",10,0]
["Renseanlæg >= 5.000 PE, Slambehandling"]
["Forafvanding, slam, Konstruktion","PE",60,0]
["Forafvanding, slam, Mek/EL","PE",20,0]
["Forafvanding, slam, SRO","PE",10,0]
["Rådnetanke, slam, Konstruktioner","PE",60,0]
["Rådnetanke, slam, Mek/EL","PE",20,0]
["Rådnetanke, slam, SRO","PE",10,0]
["Gasdisponering, Konstruktioner","PE",60,0]
["Gasdisponering, Mek/EL","PE",20,0]
["Gasdisponering, SRO","PE",10,0]
["Gasdisponering - elproduktionsanlæg, Konstruktioner","PE",60,0]
["Gasdisponering - elproduktionsanlæg, Mek/EL","PE",20,0]
["Gasdisponering - elproduktionsanlæg, SRO","PE",10,0]
["Slutafvanding, slam - lavteknologisk (slambede), Konstruktioner","PE",60,0]
["Slutafvanding, slam - lavteknologisk (slambede), Mek/EL","PE",20,0]
["Slutafvanding, slam - lavteknologisk (slambede), SRO","PE",10,0]
["Slutafvanding, slam - højteknologisk (centrifuger), Konstruktioner","PE",60,0]
["Slutafvanding, slam - højteknologisk (centrifuger), Mek/El","PE",20,0]
["Slutafvanding, slam - højteknologisk (centrifuger), SRO","PE",10,0]
["Renseanlæg >= 5.000 PE, Slamdisponering"]
["Slutdisponering, slam - lavteknologisk (slammineralisering), Konstruktioner","PE",60,0]
["Slutdisponering, slam - lavteknologisk (slammineralisering), Mek/EL","PE",20,0]
["Slutdisponering, slam - lavteknologisk (slammineralisering), SRO","PE",10,0]
["Slutdisponering, slam - højteknologisk (slamtørring), Konstruktioner","PE",60,0]
["Slutdisponering, slam - højteknologisk (slamtørring), Mek/EL","PE",20,0]
["Slutdisponering, slam - højteknologisk (slamtørring), SRO","PE",10,0]
["Slutdisponering, slam - højteknologisk (slamtørring og -forbrænding), Konstruktioner","PE",60,0]
["Slutdisponering, slam - højteknologisk (slamtørring og -forbrænding), Mek/EL","PE",20,0]
["Slutdisponering, slam - højteknologisk (slamtørring og -forbrænding), SRO","PE",10,0]
["Renseanlæg 22"]
["Mindre renseanlæg"]
["Mindre renseanlæg < 5.000 PE uden mulighed for opdeling","PE",40,0]
["Renseanlæg >= 5.000 PE, Vandbehandling"]
["Indløb med riste, Konstruktioner","PE",60,0]
["Indløb med riste, Mek/EL","PE",20,0]
["Indløb med riste, SRO","PE",10,0]
["Sand- og fedtfang, Kontruktioner","PE",60,0]
["Sand- og fedtfang, Mek/EL","PE",20,0]
["Sand- og fedtfang, SRO","PE",10,0]
["Forklaring, Konstruktioner","PE",60,0]
["Forklaring, Mek/EL","PE",20,0]
["Forklaring, SRO","PE",10,0]
["Beluftningstanke, Konstruktioner","PE",60,0]
["Beluftningstanke, Mek/EL","PE",20,0]
["Beluftningstanke, SRO","PE",10,0]
["Efterklaringstanke, Konstruktioner","PE",60,0]
["Efterklaringstanke, Mek/El","PE",20,0]
["Efterklaringstanke, SRO","PE",10,0]
["Efterbehandlingsanlæg (sandfilter), Konstruktioner","PE",60,0]
["Efterbehandlingsanlæg (sandfilter), Mek/EL","PE",20,0]
["Efterbehandlingsanlæg (sandfilter), SRO","PE",10,0]
["Renseanlæg >= 5.000 PE, Slambehandling"]
["Forafvanding, slam, Konstruktion","PE",60,0]
["Forafvanding, slam, Mek/EL","PE",20,0]
["Forafvanding, slam, SRO","PE",10,0]
["Rådnetanke, slam, Konstruktioner","PE",60,0]
["Rådnetanke, slam, Mek/EL","PE",20,0]
["Rådnetanke, slam, SRO","PE",10,0]
["Gasdisponering, Konstruktioner","PE",60,0]
["Gasdisponering, Mek/EL","PE",20,0]
["Gasdisponering, SRO","PE",10,0]
["Gasdisponering - elproduktionsanlæg, Konstruktioner","PE",60,0]
["Gasdisponering - elproduktionsanlæg, Mek/EL","PE",20,0]
["Gasdisponering - elproduktionsanlæg, SRO","PE",10,0]
["Slutafvanding, slam - lavteknologisk (slambede), Konstruktioner","PE",60,0]
["Slutafvanding, slam - lavteknologisk (slambede), Mek/EL","PE",20,0]
["Slutafvanding, slam - lavteknologisk (slambede), SRO","PE",10,0]
["Slutafvanding, slam - højteknologisk (centrifuger), Konstruktioner","PE",60,0]
["Slutafvanding, slam - højteknologisk (centrifuger), Mek/El","PE",20,0]
["Slutafvanding, slam - højteknologisk (centrifuger), SRO","PE",10,0]
["Renseanlæg >= 5.000 PE, Slamdisponering"]
["Slutdisponering, slam - lavteknologisk (slammineralisering), Konstruktioner","PE",60,0]
["Slutdisponering, slam - lavteknologisk (slammineralisering), Mek/EL","PE",20,0]
["Slutdisponering, slam - lavteknologisk (slammineralisering), SRO","PE",10,0]
["Slutdisponering, slam - højteknologisk (slamtørring), Konstruktioner","PE",60,0]
["Slutdisponering, slam - højteknologisk (slamtørring), Mek/EL","PE",20,0]
["Slutdisponering, slam - højteknologisk (slamtørring), SRO","PE",10,0]
["Slutdisponering, slam - højteknologisk (slamtørring og -forbrænding), Konstruktioner","PE",60,0]
["Slutdisponering, slam - højteknologisk (slamtørring og -forbrænding), Mek/EL","PE",20,0]
["Slutdisponering, slam - højteknologisk (slamtørring og -forbrænding), SRO","PE",10,0]
["Mindre renseanlæg"]
["Mindre renseanlæg < 5.000 PE uden mulighed for opdeling","PE",40,0]
["Renseanlæg >= 5.000 PE, Vandbehandling"]
["Indløb med riste, Konstruktioner","PE",60,0]
["Indløb med riste, Mek/EL","PE",20,0]
["Indløb med riste, SRO","PE",10,0]
["Sand- og fedtfang, Kontruktioner","PE",60,0]
["Sand- og fedtfang, Mek/EL","PE",20,0]
["Sand- og fedtfang, SRO","PE",10,0]
["Forklaring, Konstruktioner","PE",60,0]
["Forklaring, Mek/EL","PE",20,0]
["Forklaring, SRO","PE",10,0]
["Beluftningstanke, Konstruktioner","PE",60,0]
["Beluftningstanke, Mek/EL","PE",20,0]
["Beluftningstanke, SRO","PE",10,0]
["Efterklaringstanke, Konstruktioner","PE",60,0]
["Efterklaringstanke, Mek/El","PE",20,0]
["Efterklaringstanke, SRO","PE",10,0]
["Efterbehandlingsanlæg (sandfilter), Konstruktioner","PE",60,0]
["Efterbehandlingsanlæg (sandfilter), Mek/EL","PE",20,0]
["Efterbehandlingsanlæg (sandfilter), SRO","PE",10,0]
["Renseanlæg >= 5.000 PE, Slambehandling"]
["Forafvanding, slam, Konstruktion","PE",60,0]
["Forafvanding, slam, Mek/EL","PE",20,0]
["Forafvanding, slam, SRO","PE",10,0]
["Rådnetanke, slam, Konstruktioner","PE",60,0]
["Rådnetanke, slam, Mek/EL","PE",20,0]
["Rådnetanke, slam, SRO","PE",10,0]
["Gasdisponering, Konstruktioner","PE",60,0]
["Gasdisponering, Mek/EL","PE",20,0]
["Gasdisponering, SRO","PE",10,0]
["Gasdisponering - elproduktionsanlæg, Konstruktioner","PE",60,0]
["Gasdisponering - elproduktionsanlæg, Mek/EL","PE",20,0]
["Gasdisponering - elproduktionsanlæg, SRO","PE",10,0]
["Slutafvanding, slam - lavteknologisk (slambede), Konstruktioner","PE",60,0]
["Slutafvanding, slam - lavteknologisk (slambede), Mek/EL","PE",20,0]
["Slutafvanding, slam - lavteknologisk (slambede), SRO","PE",10,0]
["Slutafvanding, slam - højteknologisk (centrifuger), Konstruktioner","PE",60,0]
["Slutafvanding, slam - højteknologisk (centrifuger), Mek/El","PE",20,0]
["Slutafvanding, slam - højteknologisk (centrifuger), SRO","PE",10,0]
["Renseanlæg >= 5.000 PE, Slamdisponering"]
["Slutdisponering, slam - lavteknologisk (slammineralisering), Konstruktioner","PE",60,0]
["Slutdisponering, slam - lavteknologisk (slammineralisering), Mek/EL","PE",20,0]
["Slutdisponering, slam - lavteknologisk (slammineralisering), SRO","PE",10,0]
["Slutdisponering, slam - højteknologisk (slamtørring), Konstruktioner","PE",60,0]
["Slutdisponering, slam - højteknologisk (slamtørring), Mek/EL","PE",20,0]
["Slutdisponering, slam - højteknologisk (slamtørring), SRO","PE",10,0]
["Slutdisponering, slam - højteknologisk (slamtørring og -forbrænding), Konstruktioner","PE",60,0]
["Slutdisponering, slam - højteknologisk (slamtørring og -forbrænding), Mek/EL","PE",20,0]
["Slutdisponering, slam - højteknologisk (slamtørring og -forbrænding), SRO","PE",10,0]
["Renseanlæg 23"]
["Mindre renseanlæg"]
["Mindre renseanlæg < 5.000 PE uden mulighed for opdeling","PE",40,0]
["Renseanlæg >= 5.000 PE, Vandbehandling"]
["Indløb med riste, Konstruktioner","PE",60,0]
["Indløb med riste, Mek/EL","PE",20,0]
["Indløb med riste, SRO","PE",10,0]
["Sand- og fedtfang, Kontruktioner","PE",60,0]
["Sand- og fedtfang, Mek/EL","PE",20,0]
["Sand- og fedtfang, SRO","PE",10,0]
["Forklaring, Konstruktioner","PE",60,0]
["Forklaring, Mek/EL","PE",20,0]
["Forklaring, SRO","PE",10,0]
["Beluftningstanke, Konstruktioner","PE",60,0]
["Beluftningstanke, Mek/EL","PE",20,0]
["Beluftningstanke, SRO","PE",10,0]
["Efterklaringstanke, Konstruktioner","PE",60,0]
["Efterklaringstanke, Mek/El","PE",20,0]
["Efterklaringstanke, SRO","PE",10,0]
["Efterbehandlingsanlæg (sandfilter), Konstruktioner","PE",60,0]
["Efterbehandlingsanlæg (sandfilter), Mek/EL","PE",20,0]
["Efterbehandlingsanlæg (sandfilter), SRO","PE",10,0]
["Renseanlæg >= 5.000 PE, Slambehandling"]
["Forafvanding, slam, Konstruktion","PE",60,0]
["Forafvanding, slam, Mek/EL","PE",20,0]
["Forafvanding, slam, SRO","PE",10,0]
["Rådnetanke, slam, Konstruktioner","PE",60,0]
["Rådnetanke, slam, Mek/EL","PE",20,0]
["Rådnetanke, slam, SRO","PE",10,0]
["Gasdisponering, Konstruktioner","PE",60,0]
["Gasdisponering, Mek/EL","PE",20,0]
["Gasdisponering, SRO","PE",10,0]
["Gasdisponering - elproduktionsanlæg, Konstruktioner","PE",60,0]
["Gasdisponering - elproduktionsanlæg, Mek/EL","PE",20,0]
["Gasdisponering - elproduktionsanlæg, SRO","PE",10,0]
["Slutafvanding, slam - lavteknologisk (slambede), Konstruktioner","PE",60,0]
["Slutafvanding, slam - lavteknologisk (slambede), Mek/EL","PE",20,0]
["Slutafvanding, slam - lavteknologisk (slambede), SRO","PE",10,0]
["Slutafvanding, slam - højteknologisk (centrifuger), Konstruktioner","PE",60,0]
["Slutafvanding, slam - højteknologisk (centrifuger), Mek/El","PE",20,0]
["Slutafvanding, slam - højteknologisk (centrifuger), SRO","PE",10,0]
["Renseanlæg >= 5.000 PE, Slamdisponering"]
["Slutdisponering, slam - lavteknologisk (slammineralisering), Konstruktioner","PE",60,0]
["Slutdisponering, slam - lavteknologisk (slammineralisering), Mek/EL","PE",20,0]
["Slutdisponering, slam - lavteknologisk (slammineralisering), SRO","PE",10,0]
["Slutdisponering, slam - højteknologisk (slamtørring), Konstruktioner","PE",60,0]
["Slutdisponering, slam - højteknologisk (slamtørring), Mek/EL","PE",20,0]
["Slutdisponering, slam - højteknologisk (slamtørring), SRO","PE",10,0]
["Slutdisponering, slam - højteknologisk (slamtørring og -forbrænding), Konstruktioner","PE",60,0]
["Slutdisponering, slam - højteknologisk (slamtørring og -forbrænding), Mek/EL","PE",20,0]
["Slutdisponering, slam - højteknologisk (slamtørring og -forbrænding), SRO","PE",10,0]
["Renseanlæg 24"]
["Mindre renseanlæg"]
["Mindre renseanlæg < 5.000 PE uden mulighed for opdeling","PE",40,0]
["Renseanlæg >= 5.000 PE, Vandbehandling"]
["Indløb med riste, Konstruktioner","PE",60,0]
["Indløb med riste, Mek/EL","PE",20,0]
["Indløb med riste, SRO","PE",10,0]
["Sand- og fedtfang, Kontruktioner","PE",60,0]
["Sand- og fedtfang, Mek/EL","PE",20,0]
["Sand- og fedtfang, SRO","PE",10,0]
["Forklaring, Konstruktioner","PE",60,0]
["Forklaring, Mek/EL","PE",20,0]
["Forklaring, SRO","PE",10,0]
["Beluftningstanke, Konstruktioner","PE",60,0]
["Beluftningstanke, Mek/EL","PE",20,0]
["Beluftningstanke, SRO","PE",10,0]
["Efterklaringstanke, Konstruktioner","PE",60,0]
["Efterklaringstanke, Mek/El","PE",20,0]
["Efterklaringstanke, SRO","PE",10,0]
["Efterbehandlingsanlæg (sandfilter), Konstruktioner","PE",60,0]
["Efterbehandlingsanlæg (sandfilter), Mek/EL","PE",20,0]
["Efterbehandlingsanlæg (sandfilter), SRO","PE",10,0]
["Renseanlæg >= 5.000 PE, Slambehandling"]
["Forafvanding, slam, Konstruktion","PE",60,0]
["Forafvanding, slam, Mek/EL","PE",20,0]
["Forafvanding, slam, SRO","PE",10,0]
["Rådnetanke, slam, Konstruktioner","PE",60,0]
["Rådnetanke, slam, Mek/EL","PE",20,0]
["Rådnetanke, slam, SRO","PE",10,0]
["Gasdisponering, Konstruktioner","PE",60,0]
["Gasdisponering, Mek/EL","PE",20,0]
["Gasdisponering, SRO","PE",10,0]
["Gasdisponering - elproduktionsanlæg, Konstruktioner","PE",60,0]
["Gasdisponering - elproduktionsanlæg, Mek/EL","PE",20,0]
["Gasdisponering - elproduktionsanlæg, SRO","PE",10,0]
["Slutafvanding, slam - lavteknologisk (slambede), Konstruktioner","PE",60,0]
["Slutafvanding, slam - lavteknologisk (slambede), Mek/EL","PE",20,0]
["Slutafvanding, slam - lavteknologisk (slambede), SRO","PE",10,0]
["Slutafvanding, slam - højteknologisk (centrifuger), Konstruktioner","PE",60,0]
["Slutafvanding, slam - højteknologisk (centrifuger), Mek/El","PE",20,0]
["Slutafvanding, slam - højteknologisk (centrifuger), SRO","PE",10,0]
["Renseanlæg >= 5.000 PE, Slamdisponering"]
["Slutdisponering, slam - lavteknologisk (slammineralisering), Konstruktioner","PE",60,0]
["Slutdisponering, slam - lavteknologisk (slammineralisering), Mek/EL","PE",20,0]
["Slutdisponering, slam - lavteknologisk (slammineralisering), SRO","PE",10,0]
["Slutdisponering, slam - højteknologisk (slamtørring), Konstruktioner","PE",60,0]
["Slutdisponering, slam - højteknologisk (slamtørring), Mek/EL","PE",20,0]
["Slutdisponering, slam - højteknologisk (slamtørring), SRO","PE",10,0]
["Slutdisponering, slam - højteknologisk (slamtørring og -forbrænding), Konstruktioner","PE",60,0]
["Slutdisponering, slam - højteknologisk (slamtørring og -forbrænding), Mek/EL","PE",20,0]
["Slutdisponering, slam - højteknologisk (slamtørring og -forbrænding), SRO","PE",10,0]
["Renseanlæg 25"]
["Mindre renseanlæg"]
["Mindre renseanlæg < 5.000 PE uden mulighed for opdeling","PE",40,0]
["Renseanlæg >= 5.000 PE, Vandbehandling"]
["Indløb med riste, Konstruktioner","PE",60,0]
["Indløb med riste, Mek/EL","PE",20,0]
["Indløb med riste, SRO","PE",10,0]
["Sand- og fedtfang, Kontruktioner","PE",60,0]
["Sand- og fedtfang, Mek/EL","PE",20,0]
["Sand- og fedtfang, SRO","PE",10,0]
["Forklaring, Konstruktioner","PE",60,0]
["Forklaring, Mek/EL","PE",20,0]
["Forklaring, SRO","PE",10,0]
["Beluftningstanke, Konstruktioner","PE",60,0]
["Beluftningstanke, Mek/EL","PE",20,0]
["Beluftningstanke, SRO","PE",10,0]
["Efterklaringstanke, Konstruktioner","PE",60,0]
["Efterklaringstanke, Mek/El","PE",20,0]
["Efterklaringstanke, SRO","PE",10,0]
["Efterbehandlingsanlæg (sandfilter), Konstruktioner","PE",60,0]
["Efterbehandlingsanlæg (sandfilter), Mek/EL","PE",20,0]
["Efterbehandlingsanlæg (sandfilter), SRO","PE",10,0]
["Renseanlæg >= 5.000 PE, Slambehandling"]
["Forafvanding, slam, Konstruktion","PE",60,0]
["Forafvanding, slam, Mek/EL","PE",20,0]
["Forafvanding, slam, SRO","PE",10,0]
["Rådnetanke, slam, Konstruktioner","PE",60,0]
["Rådnetanke, slam, Mek/EL","PE",20,0]
["Rådnetanke, slam, SRO","PE",10,0]
["Gasdisponering, Konstruktioner","PE",60,0]
["Gasdisponering, Mek/EL","PE",20,0]
["Gasdisponering, SRO","PE",10,0]
["Gasdisponering - elproduktionsanlæg, Konstruktioner","PE",60,0]
["Gasdisponering - elproduktionsanlæg, Mek/EL","PE",20,0]
["Gasdisponering - elproduktionsanlæg, SRO","PE",10,0]
["Slutafvanding, slam - lavteknologisk (slambede), Konstruktioner","PE",60,0]
["Slutafvanding, slam - lavteknologisk (slambede), Mek/EL","PE",20,0]
["Slutafvanding, slam - lavteknologisk (slambede), SRO","PE",10,0]
["Slutafvanding, slam - højteknologisk (centrifuger), Konstruktioner","PE",60,0]
["Slutafvanding, slam - højteknologisk (centrifuger), Mek/El","PE",20,0]
["Slutafvanding, slam - højteknologisk (centrifuger), SRO","PE",10,0]
["Renseanlæg >= 5.000 PE, Slamdisponering"]
["Slutdisponering, slam - lavteknologisk (slammineralisering), Konstruktioner","PE",60,0]
["Slutdisponering, slam - lavteknologisk (slammineralisering), Mek/EL","PE",20,0]
["Slutdisponering, slam - lavteknologisk (slammineralisering), SRO","PE",10,0]
["Slutdisponering, slam - højteknologisk (slamtørring), Konstruktioner","PE",60,0]
["Slutdisponering, slam - højteknologisk (slamtørring), Mek/EL","PE",20,0]
["Slutdisponering, slam - højteknologisk (slamtørring), SRO","PE",10,0]
["Slutdisponering, slam - højteknologisk (slamtørring og -forbrænding), Konstruktioner","PE",60,0]
["Slutdisponering, slam - højteknologisk (slamtørring og -forbrænding), Mek/EL","PE",20,0]
["Slutdisponering, slam - højteknologisk (slamtørring og -forbrænding), SRO","PE",10,0]
["Renseanlæg 26"]
["Mindre renseanlæg"]
["Mindre renseanlæg < 5.000 PE uden mulighed for opdeling","PE",40,0]
["Renseanlæg >= 5.000 PE, Vandbehandling"]
["Indløb med riste, Konstruktioner","PE",60,0]
["Indløb med riste, Mek/EL","PE",20,0]
["Indløb med riste, SRO","PE",10,0]
["Sand- og fedtfang, Kontruktioner","PE",60,0]
["Sand- og fedtfang, Mek/EL","PE",20,0]
["Sand- og fedtfang, SRO","PE",10,0]
["Forklaring, Konstruktioner","PE",60,0]
["Forklaring, Mek/EL","PE",20,0]
["Forklaring, SRO","PE",10,0]
["Beluftningstanke, Konstruktioner","PE",60,0]
["Beluftningstanke, Mek/EL","PE",20,0]
["Beluftningstanke, SRO","PE",10,0]
["Efterklaringstanke, Konstruktioner","PE",60,0]
["Efterklaringstanke, Mek/El","PE",20,0]
["Efterklaringstanke, SRO","PE",10,0]
["Efterbehandlingsanlæg (sandfilter), Konstruktioner","PE",60,0]
["Efterbehandlingsanlæg (sandfilter), Mek/EL","PE",20,0]
["Efterbehandlingsanlæg (sandfilter), SRO","PE",10,0]
["Renseanlæg >= 5.000 PE, Slambehandling"]
["Forafvanding, slam, Konstruktion","PE",60,0]
["Forafvanding, slam, Mek/EL","PE",20,0]
["Forafvanding, slam, SRO","PE",10,0]
["Rådnetanke, slam, Konstruktioner","PE",60,0]
["Rådnetanke, slam, Mek/EL","PE",20,0]
["Rådnetanke, slam, SRO","PE",10,0]
["Gasdisponering, Konstruktioner","PE",60,0]
["Gasdisponering, Mek/EL","PE",20,0]
["Gasdisponering, SRO","PE",10,0]
["Gasdisponering - elproduktionsanlæg, Konstruktioner","PE",60,0]
["Gasdisponering - elproduktionsanlæg, Mek/EL","PE",20,0]
["Gasdisponering - elproduktionsanlæg, SRO","PE",10,0]
["Slutafvanding, slam - lavteknologisk (slambede), Konstruktioner","PE",60,0]
["Slutafvanding, slam - lavteknologisk (slambede), Mek/EL","PE",20,0]
["Slutafvanding, slam - lavteknologisk (slambede), SRO","PE",10,0]
["Slutafvanding, slam - højteknologisk (centrifuger), Konstruktioner","PE",60,0]
["Slutafvanding, slam - højteknologisk (centrifuger), Mek/El","PE",20,0]
["Slutafvanding, slam - højteknologisk (centrifuger), SRO","PE",10,0]
["Renseanlæg >= 5.000 PE, Slamdisponering"]
["Slutdisponering, slam - lavteknologisk (slammineralisering), Konstruktioner","PE",60,0]
["Slutdisponering, slam - lavteknologisk (slammineralisering), Mek/EL","PE",20,0]
["Slutdisponering, slam - lavteknologisk (slammineralisering), SRO","PE",10,0]
["Slutdisponering, slam - højteknologisk (slamtørring), Konstruktioner","PE",60,0]
["Slutdisponering, slam - højteknologisk (slamtørring), Mek/EL","PE",20,0]
["Slutdisponering, slam - højteknologisk (slamtørring), SRO","PE",10,0]
["Slutdisponering, slam - højteknologisk (slamtørring og -forbrænding), Konstruktioner","PE",60,0]
["Slutdisponering, slam - højteknologisk (slamtørring og -forbrænding), Mek/EL","PE",20,0]
["Slutdisponering, slam - højteknologisk (slamtørring og -forbrænding), SRO","PE",10,0]
["Renseanlæg 27"]
["Mindre renseanlæg"]
["Mindre renseanlæg < 5.000 PE uden mulighed for opdeling","PE",40,0]
["Renseanlæg >= 5.000 PE, Vandbehandling"]
["Indløb med riste, Konstruktioner","PE",60,0]
["Indløb med riste, Mek/EL","PE",20,0]
["Indløb med riste, SRO","PE",10,0]
["Sand- og fedtfang, Kontruktioner","PE",60,0]
["Sand- og fedtfang, Mek/EL","PE",20,0]
["Sand- og fedtfang, SRO","PE",10,0]
["Forklaring, Konstruktioner","PE",60,0]
["Forklaring, Mek/EL","PE",20,0]
["Forklaring, SRO","PE",10,0]
["Beluftningstanke, Konstruktioner","PE",60,0]
["Beluftningstanke, Mek/EL","PE",20,0]
["Beluftningstanke, SRO","PE",10,0]
["Efterklaringstanke, Konstruktioner","PE",60,0]
["Efterklaringstanke, Mek/El","PE",20,0]
["Efterklaringstanke, SRO","PE",10,0]
["Efterbehandlingsanlæg (sandfilter), Konstruktioner","PE",60,0]
["Efterbehandlingsanlæg (sandfilter), Mek/EL","PE",20,0]
["Efterbehandlingsanlæg (sandfilter), SRO","PE",10,0]
["Renseanlæg >= 5.000 PE, Slambehandling"]
["Forafvanding, slam, Konstruktion","PE",60,0]
["Forafvanding, slam, Mek/EL","PE",20,0]
["Forafvanding, slam, SRO","PE",10,0]
["Rådnetanke, slam, Konstruktioner","PE",60,0]
["Rådnetanke, slam, Mek/EL","PE",20,0]
["Rådnetanke, slam, SRO","PE",10,0]
["Gasdisponering, Konstruktioner","PE",60,0]
["Gasdisponering, Mek/EL","PE",20,0]
["Gasdisponering, SRO","PE",10,0]
["Gasdisponering - elproduktionsanlæg, Konstruktioner","PE",60,0]
["Gasdisponering - elproduktionsanlæg, Mek/EL","PE",20,0]
["Gasdisponering - elproduktionsanlæg, SRO","PE",10,0]
["Slutafvanding, slam - lavteknologisk (slambede), Konstruktioner","PE",60,0]
["Slutafvanding, slam - lavteknologisk (slambede), Mek/EL","PE",20,0]
["Slutafvanding, slam - lavteknologisk (slambede), SRO","PE",10,0]
["Slutafvanding, slam - højteknologisk (centrifuger), Konstruktioner","PE",60,0]
["Slutafvanding, slam - højteknologisk (centrifuger), Mek/El","PE",20,0]
["Slutafvanding, slam - højteknologisk (centrifuger), SRO","PE",10,0]
["Renseanlæg >= 5.000 PE, Slamdisponering"]
["Slutdisponering, slam - lavteknologisk (slammineralisering), Konstruktioner","PE",60,0]
["Slutdisponering, slam - lavteknologisk (slammineralisering), Mek/EL","PE",20,0]
["Slutdisponering, slam - lavteknologisk (slammineralisering), SRO","PE",10,0]
["Slutdisponering, slam - højteknologisk (slamtørring), Konstruktioner","PE",60,0]
["Slutdisponering, slam - højteknologisk (slamtørring), Mek/EL","PE",20,0]
["Slutdisponering, slam - højteknologisk (slamtørring), SRO","PE",10,0]
["Slutdisponering, slam - højteknologisk (slamtørring og -forbrænding), Konstruktioner","PE",60,0]
["Slutdisponering, slam - højteknologisk (slamtørring og -forbrænding), Mek/EL","PE",20,0]
["Slutdisponering, slam - højteknologisk (slamtørring og -forbrænding), SRO","PE",10,0]
["Renseanlæg 28"]
["Mindre renseanlæg"]
["Mindre renseanlæg < 5.000 PE uden mulighed for opdeling","PE",40,0]
["Renseanlæg >= 5.000 PE, Vandbehandling"]
["Indløb med riste, Konstruktioner","PE",60,0]
["Indløb med riste, Mek/EL","PE",20,0]
["Indløb med riste, SRO","PE",10,0]
["Sand- og fedtfang, Kontruktioner","PE",60,0]
["Sand- og fedtfang, Mek/EL","PE",20,0]
["Sand- og fedtfang, SRO","PE",10,0]
["Forklaring, Konstruktioner","PE",60,0]
["Forklaring, Mek/EL","PE",20,0]
["Forklaring, SRO","PE",10,0]
["Beluftningstanke, Konstruktioner","PE",60,0]
["Beluftningstanke, Mek/EL","PE",20,0]
["Beluftningstanke, SRO","PE",10,0]
["Efterklaringstanke, Konstruktioner","PE",60,0]
["Efterklaringstanke, Mek/El","PE",20,0]
["Efterklaringstanke, SRO","PE",10,0]
["Efterbehandlingsanlæg (sandfilter), Konstruktioner","PE",60,0]
["Efterbehandlingsanlæg (sandfilter), Mek/EL","PE",20,0]
["Efterbehandlingsanlæg (sandfilter), SRO","PE",10,0]
["Renseanlæg >= 5.000 PE, Slambehandling"]
["Forafvanding, slam, Konstruktion","PE",60,0]
["Forafvanding, slam, Mek/EL","PE",20,0]
["Forafvanding, slam, SRO","PE",10,0]
["Rådnetanke, slam, Konstruktioner","PE",60,0]
["Rådnetanke, slam, Mek/EL","PE",20,0]
["Rådnetanke, slam, SRO","PE",10,0]
["Gasdisponering, Konstruktioner","PE",60,0]
["Gasdisponering, Mek/EL","PE",20,0]
["Gasdisponering, SRO","PE",10,0]
["Gasdisponering - elproduktionsanlæg, Konstruktioner","PE",60,0]
["Gasdisponering - elproduktionsanlæg, Mek/EL","PE",20,0]
["Gasdisponering - elproduktionsanlæg, SRO","PE",10,0]
["Slutafvanding, slam - lavteknologisk (slambede), Konstruktioner","PE",60,0]
["Slutafvanding, slam - lavteknologisk (slambede), Mek/EL","PE",20,0]
["Slutafvanding, slam - lavteknologisk (slambede), SRO","PE",10,0]
["Slutafvanding, slam - højteknologisk (centrifuger), Konstruktioner","PE",60,0]
["Slutafvanding, slam - højteknologisk (centrifuger), Mek/El","PE",20,0]
["Slutafvanding, slam - højteknologisk (centrifuger), SRO","PE",10,0]
["Renseanlæg >= 5.000 PE, Slamdisponering"]
["Slutdisponering, slam - lavteknologisk (slammineralisering), Konstruktioner","PE",60,0]
["Slutdisponering, slam - lavteknologisk (slammineralisering), Mek/EL","PE",20,0]
["Slutdisponering, slam - lavteknologisk (slammineralisering), SRO","PE",10,0]
["Slutdisponering, slam - højteknologisk (slamtørring), Konstruktioner","PE",60,0]
["Slutdisponering, slam - højteknologisk (slamtørring), Mek/EL","PE",20,0]
["Slutdisponering, slam - højteknologisk (slamtørring), SRO","PE",10,0]
["Slutdisponering, slam - højteknologisk (slamtørring og -forbrænding), Konstruktioner","PE",60,0]
["Slutdisponering, slam - højteknologisk (slamtørring og -forbrænding), Mek/EL","PE",20,0]
["Slutdisponering, slam - højteknologisk (slamtørring og -forbrænding), SRO","PE",10,0]
["Renseanlæg 29"]
["Mindre renseanlæg"]
["Mindre renseanlæg < 5.000 PE uden mulighed for opdeling","PE",40,0]
["Renseanlæg >= 5.000 PE, Vandbehandling"]
["Indløb med riste, Konstruktioner","PE",60,0]
["Indløb med riste, Mek/EL","PE",20,0]
["Indløb med riste, SRO","PE",10,0]
["Sand- og fedtfang, Kontruktioner","PE",60,0]
["Sand- og fedtfang, Mek/EL","PE",20,0]
["Sand- og fedtfang, SRO","PE",10,0]
["Forklaring, Konstruktioner","PE",60,0]
["Forklaring, Mek/EL","PE",20,0]
["Forklaring, SRO","PE",10,0]
["Beluftningstanke, Konstruktioner","PE",60,0]
["Beluftningstanke, Mek/EL","PE",20,0]
["Beluftningstanke, SRO","PE",10,0]
["Efterklaringstanke, Konstruktioner","PE",60,0]
["Efterklaringstanke, Mek/El","PE",20,0]
["Efterklaringstanke, SRO","PE",10,0]
["Efterbehandlingsanlæg (sandfilter), Konstruktioner","PE",60,0]
["Efterbehandlingsanlæg (sandfilter), Mek/EL","PE",20,0]
["Efterbehandlingsanlæg (sandfilter), SRO","PE",10,0]
["Renseanlæg >= 5.000 PE, Slambehandling"]
["Forafvanding, slam, Konstruktion","PE",60,0]
["Forafvanding, slam, Mek/EL","PE",20,0]
["Forafvanding, slam, SRO","PE",10,0]
["Rådnetanke, slam, Konstruktioner","PE",60,0]
["Rådnetanke, slam, Mek/EL","PE",20,0]
["Rådnetanke, slam, SRO","PE",10,0]
["Gasdisponering, Konstruktioner","PE",60,0]
["Gasdisponering, Mek/EL","PE",20,0]
["Gasdisponering, SRO","PE",10,0]
["Gasdisponering - elproduktionsanlæg, Konstruktioner","PE",60,0]
["Gasdisponering - elproduktionsanlæg, Mek/EL","PE",20,0]
["Gasdisponering - elproduktionsanlæg, SRO","PE",10,0]
["Slutafvanding, slam - lavteknologisk (slambede), Konstruktioner","PE",60,0]
["Slutafvanding, slam - lavteknologisk (slambede), Mek/EL","PE",20,0]
["Slutafvanding, slam - lavteknologisk (slambede), SRO","PE",10,0]
["Slutafvanding, slam - højteknologisk (centrifuger), Konstruktioner","PE",60,0]
["Slutafvanding, slam - højteknologisk (centrifuger), Mek/El","PE",20,0]
["Slutafvanding, slam - højteknologisk (centrifuger), SRO","PE",10,0]
["Renseanlæg >= 5.000 PE, Slamdisponering"]
["Slutdisponering, slam - lavteknologisk (slammineralisering), Konstruktioner","PE",60,0]
["Slutdisponering, slam - lavteknologisk (slammineralisering), Mek/EL","PE",20,0]
["Slutdisponering, slam - lavteknologisk (slammineralisering), SRO","PE",10,0]
["Slutdisponering, slam - højteknologisk (slamtørring), Konstruktioner","PE",60,0]
["Slutdisponering, slam - højteknologisk (slamtørring), Mek/EL","PE",20,0]
["Slutdisponering, slam - højteknologisk (slamtørring), SRO","PE",10,0]
["Slutdisponering, slam - højteknologisk (slamtørring og -forbrænding), Konstruktioner","PE",60,0]
["Slutdisponering, slam - højteknologisk (slamtørring og -forbrænding), Mek/EL","PE",20,0]
["Slutdisponering, slam - højteknologisk (slamtørring og -forbrænding), SRO","PE",10,0]
["Renseanlæg 30"]
["Mindre renseanlæg"]
["Mindre renseanlæg < 5.000 PE uden mulighed for opdeling","PE",40,0]
["Renseanlæg >= 5.000 PE, Vandbehandling"]
["Indløb med riste, Konstruktioner","PE",60,0]
["Indløb med riste, Mek/EL","PE",20,0]
["Indløb med riste, SRO","PE",10,0]
["Sand- og fedtfang, Kontruktioner","PE",60,0]
["Sand- og fedtfang, Mek/EL","PE",20,0]
["Sand- og fedtfang, SRO","PE",10,0]
["Forklaring, Konstruktioner","PE",60,0]
["Forklaring, Mek/EL","PE",20,0]
["Forklaring, SRO","PE",10,0]
["Beluftningstanke, Konstruktioner","PE",60,0]
["Beluftningstanke, Mek/EL","PE",20,0]
["Beluftningstanke, SRO","PE",10,0]
["Efterklaringstanke, Konstruktioner","PE",60,0]
["Efterklaringstanke, Mek/El","PE",20,0]
["Efterklaringstanke, SRO","PE",10,0]
["Efterbehandlingsanlæg (sandfilter), Konstruktioner","PE",60,0]
["Efterbehandlingsanlæg (sandfilter), Mek/EL","PE",20,0]
["Efterbehandlingsanlæg (sandfilter), SRO","PE",10,0]
["Renseanlæg >= 5.000 PE, Slambehandling"]
["Forafvanding, slam, Konstruktion","PE",60,0]
["Forafvanding, slam, Mek/EL","PE",20,0]
["Forafvanding, slam, SRO","PE",10,0]
["Rådnetanke, slam, Konstruktioner","PE",60,0]
["Rådnetanke, slam, Mek/EL","PE",20,0]
["Rådnetanke, slam, SRO","PE",10,0]
["Gasdisponering, Konstruktioner","PE",60,0]
["Gasdisponering, Mek/EL","PE",20,0]
["Gasdisponering, SRO","PE",10,0]
["Gasdisponering - elproduktionsanlæg, Konstruktioner","PE",60,0]
["Gasdisponering - elproduktionsanlæg, Mek/EL","PE",20,0]
["Gasdisponering - elproduktionsanlæg, SRO","PE",10,0]
["Slutafvanding, slam - lavteknologisk (slambede), Konstruktioner","PE",60,0]
["Slutafvanding, slam - lavteknologisk (slambede), Mek/EL","PE",20,0]
["Slutafvanding, slam - lavteknologisk (slambede), SRO","PE",10,0]
["Slutafvanding, slam - højteknologisk (centrifuger), Konstruktioner","PE",60,0]
["Slutafvanding, slam - højteknologisk (centrifuger), Mek/El","PE",20,0]
["Slutafvanding, slam - højteknologisk (centrifuger), SRO","PE",10,0]
["Renseanlæg >= 5.000 PE, Slamdisponering"]
["Slutdisponering, slam - lavteknologisk (slammineralisering), Konstruktioner","PE",60,0]
["Slutdisponering, slam - lavteknologisk (slammineralisering), Mek/EL","PE",20,0]
["Slutdisponering, slam - lavteknologisk (slammineralisering), SRO","PE",10,0]
["Slutdisponering, slam - højteknologisk (slamtørring), Konstruktioner","PE",60,0]
["Slutdisponering, slam - højteknologisk (slamtørring), Mek/EL","PE",20,0]
["Slutdisponering, slam - højteknologisk (slamtørring), SRO","PE",10,0]
["Slutdisponering, slam - højteknologisk (slamtørring og -forbrænding), Konstruktioner","PE",60,0]
["Slutdisponering, slam - højteknologisk (slamtørring og -forbrænding), Mek/EL","PE",20,0]
["Slutdisponering, slam - højteknologisk (slamtørring og -forbrænding), SRO","PE",10,0]
["Renseanlæg 31"]
["Mindre renseanlæg"]
["Mindre renseanlæg < 5.000 PE uden mulighed for opdeling","PE",40,0]
["Renseanlæg >= 5.000 PE, Vandbehandling"]
["Indløb med riste, Konstruktioner","PE",60,0]
["Indløb med riste, Mek/EL","PE",20,0]
["Indløb med riste, SRO","PE",10,0]
["Sand- og fedtfang, Kontruktioner","PE",60,0]
["Sand- og fedtfang, Mek/EL","PE",20,0]
["Sand- og fedtfang, SRO","PE",10,0]
["Forklaring, Konstruktioner","PE",60,0]
["Forklaring, Mek/EL","PE",20,0]
["Forklaring, SRO","PE",10,0]
["Beluftningstanke, Konstruktioner","PE",60,0]
["Beluftningstanke, Mek/EL","PE",20,0]
["Beluftningstanke, SRO","PE",10,0]
["Efterklaringstanke, Konstruktioner","PE",60,0]
["Efterklaringstanke, Mek/El","PE",20,0]
["Efterklaringstanke, SRO","PE",10,0]
["Efterbehandlingsanlæg (sandfilter), Konstruktioner","PE",60,0]
["Efterbehandlingsanlæg (sandfilter), Mek/EL","PE",20,0]
["Efterbehandlingsanlæg (sandfilter), SRO","PE",10,0]
["Renseanlæg >= 5.000 PE, Slambehandling"]
["Forafvanding, slam, Konstruktion","PE",60,0]
["Forafvanding, slam, Mek/EL","PE",20,0]
["Forafvanding, slam, SRO","PE",10,0]
["Rådnetanke, slam, Konstruktioner","PE",60,0]
["Rådnetanke, slam, Mek/EL","PE",20,0]
["Rådnetanke, slam, SRO","PE",10,0]
["Gasdisponering, Konstruktioner","PE",60,0]
["Gasdisponering, Mek/EL","PE",20,0]
["Gasdisponering, SRO","PE",10,0]
["Gasdisponering - elproduktionsanlæg, Konstruktioner","PE",60,0]
["Gasdisponering - elproduktionsanlæg, Mek/EL","PE",20,0]
["Gasdisponering - elproduktionsanlæg, SRO","PE",10,0]
["Slutafvanding, slam - lavteknologisk (slambede), Konstruktioner","PE",60,0]
["Slutafvanding, slam - lavteknologisk (slambede), Mek/EL","PE",20,0]
["Slutafvanding, slam - lavteknologisk (slambede), SRO","PE",10,0]
["Slutafvanding, slam - højteknologisk (centrifuger), Konstruktioner","PE",60,0]
["Slutafvanding, slam - højteknologisk (centrifuger), Mek/El","PE",20,0]
["Slutafvanding, slam - højteknologisk (centrifuger), SRO","PE",10,0]
["Renseanlæg >= 5.000 PE, Slamdisponering"]
["Slutdisponering, slam - lavteknologisk (slammineralisering), Konstruktioner","PE",60,0]
["Slutdisponering, slam - lavteknologisk (slammineralisering), Mek/EL","PE",20,0]
["Slutdisponering, slam - lavteknologisk (slammineralisering), SRO","PE",10,0]
["Slutdisponering, slam - højteknologisk (slamtørring), Konstruktioner","PE",60,0]
["Slutdisponering, slam - højteknologisk (slamtørring), Mek/EL","PE",20,0]
["Slutdisponering, slam - højteknologisk (slamtørring), SRO","PE",10,0]
["Slutdisponering, slam - højteknologisk (slamtørring og -forbrænding), Konstruktioner","PE",60,0]
["Slutdisponering, slam - højteknologisk (slamtørring og -forbrænding), Mek/EL","PE",20,0]
["Slutdisponering, slam - højteknologisk (slamtørring og -forbrænding), SRO","PE",10,0]
["Renseanlæg 32"]
["Mindre renseanlæg"]
["Mindre renseanlæg < 5.000 PE uden mulighed for opdeling","PE",40,0]
["Renseanlæg >= 5.000 PE, Vandbehandling"]
["Indløb med riste, Konstruktioner","PE",60,0]
["Indløb med riste, Mek/EL","PE",20,0]
["Indløb med riste, SRO","PE",10,0]
["Sand- og fedtfang, Kontruktioner","PE",60,0]
["Sand- og fedtfang, Mek/EL","PE",20,0]
["Sand- og fedtfang, SRO","PE",10,0]
["Forklaring, Konstruktioner","PE",60,0]
["Forklaring, Mek/EL","PE",20,0]
["Forklaring, SRO","PE",10,0]
["Beluftningstanke, Konstruktioner","PE",60,0]
["Beluftningstanke, Mek/EL","PE",20,0]
["Beluftningstanke, SRO","PE",10,0]
["Efterklaringstanke, Konstruktioner","PE",60,0]
["Efterklaringstanke, Mek/El","PE",20,0]
["Efterklaringstanke, SRO","PE",10,0]
["Efterbehandlingsanlæg (sandfilter), Konstruktioner","PE",60,0]
["Efterbehandlingsanlæg (sandfilter), Mek/EL","PE",20,0]
["Efterbehandlingsanlæg (sandfilter), SRO","PE",10,0]
["Renseanlæg >= 5.000 PE, Slambehandling"]
["Forafvanding, slam, Konstruktion","PE",60,0]
["Forafvanding, slam, Mek/EL","PE",20,0]
["Forafvanding, slam, SRO","PE",10,0]
["Rådnetanke, slam, Konstruktioner","PE",60,0]
["Rådnetanke, slam, Mek/EL","PE",20,0]
["Rådnetanke, slam, SRO","PE",10,0]
["Gasdisponering, Konstruktioner","PE",60,0]
["Gasdisponering, Mek/EL","PE",20,0]
["Gasdisponering, SRO","PE",10,0]
["Gasdisponering - elproduktionsanlæg, Konstruktioner","PE",60,0]
["Gasdisponering - elproduktionsanlæg, Mek/EL","PE",20,0]
["Gasdisponering - elproduktionsanlæg, SRO","PE",10,0]
["Slutafvanding, slam - lavteknologisk (slambede), Konstruktioner","PE",60,0]
["Slutafvanding, slam - lavteknologisk (slambede), Mek/EL","PE",20,0]
["Slutafvanding, slam - lavteknologisk (slambede), SRO","PE",10,0]
["Slutafvanding, slam - højteknologisk (centrifuger), Konstruktioner","PE",60,0]
["Slutafvanding, slam - højteknologisk (centrifuger), Mek/El","PE",20,0]
["Slutafvanding, slam - højteknologisk (centrifuger), SRO","PE",10,0]
["Renseanlæg >= 5.000 PE, Slamdisponering"]
["Slutdisponering, slam - lavteknologisk (slammineralisering), Konstruktioner","PE",60,0]
["Slutdisponering, slam - lavteknologisk (slammineralisering), Mek/EL","PE",20,0]
["Slutdisponering, slam - lavteknologisk (slammineralisering), SRO","PE",10,0]
["Slutdisponering, slam - højteknologisk (slamtørring), Konstruktioner","PE",60,0]
["Slutdisponering, slam - højteknologisk (slamtørring), Mek/EL","PE",20,0]
["Slutdisponering, slam - højteknologisk (slamtørring), SRO","PE",10,0]
["Slutdisponering, slam - højteknologisk (slamtørring og -forbrænding), Konstruktioner","PE",60,0]
["Slutdisponering, slam - højteknologisk (slamtørring og -forbrænding), Mek/EL","PE",20,0]
["Slutdisponering, slam - højteknologisk (slamtørring og -forbrænding), SRO","PE",10,0]
["Mindre renseanlæg"]
["Mindre renseanlæg < 5.000 PE uden mulighed for opdeling","PE",40,0]
["Renseanlæg >= 5.000 PE, Vandbehandling"]
["Indløb med riste, Konstruktioner","PE",60,0]
["Indløb med riste, Mek/EL","PE",20,0]
["Indløb med riste, SRO","PE",10,0]
["Sand- og fedtfang, Kontruktioner","PE",60,0]
["Sand- og fedtfang, Mek/EL","PE",20,0]
["Sand- og fedtfang, SRO","PE",10,0]
["Forklaring, Konstruktioner","PE",60,0]
["Forklaring, Mek/EL","PE",20,0]
["Forklaring, SRO","PE",10,0]
["Beluftningstanke, Konstruktioner","PE",60,0]
["Beluftningstanke, Mek/EL","PE",20,0]
["Beluftningstanke, SRO","PE",10,0]
["Efterklaringstanke, Konstruktioner","PE",60,0]
["Efterklaringstanke, Mek/El","PE",20,0]
["Efterklaringstanke, SRO","PE",10,0]
["Efterbehandlingsanlæg (sandfilter), Konstruktioner","PE",60,0]
["Efterbehandlingsanlæg (sandfilter), Mek/EL","PE",20,0]
["Efterbehandlingsanlæg (sandfilter), SRO","PE",10,0]
["Renseanlæg >= 5.000 PE, Slambehandling"]
["Forafvanding, slam, Konstruktion","PE",60,0]
["Forafvanding, slam, Mek/EL","PE",20,0]
["Forafvanding, slam, SRO","PE",10,0]
["Rådnetanke, slam, Konstruktioner","PE",60,0]
["Rådnetanke, slam, Mek/EL","PE",20,0]
["Rådnetanke, slam, SRO","PE",10,0]
["Gasdisponering, Konstruktioner","PE",60,0]
["Gasdisponering, Mek/EL","PE",20,0]
["Gasdisponering, SRO","PE",10,0]
["Gasdisponering - elproduktionsanlæg, Konstruktioner","PE",60,0]
["Gasdisponering - elproduktionsanlæg, Mek/EL","PE",20,0]
["Gasdisponering - elproduktionsanlæg, SRO","PE",10,0]
["Slutafvanding, slam - lavteknologisk (slambede), Konstruktioner","PE",60,0]
["Slutafvanding, slam - lavteknologisk (slambede), Mek/EL","PE",20,0]
["Slutafvanding, slam - lavteknologisk (slambede), SRO","PE",10,0]
["Slutafvanding, slam - højteknologisk (centrifuger), Konstruktioner","PE",60,0]
["Slutafvanding, slam - højteknologisk (centrifuger), Mek/El","PE",20,0]
["Slutafvanding, slam - højteknologisk (centrifuger), SRO","PE",10,0]
["Renseanlæg >= 5.000 PE, Slamdisponering"]
["Slutdisponering, slam - lavteknologisk (slammineralisering), Konstruktioner","PE",60,0]
["Slutdisponering, slam - lavteknologisk (slammineralisering), Mek/EL","PE",20,0]
["Slutdisponering, slam - lavteknologisk (slammineralisering), SRO","PE",10,0]
["Slutdisponering, slam - højteknologisk (slamtørring), Konstruktioner","PE",60,0]
["Slutdisponering, slam - højteknologisk (slamtørring), Mek/EL","PE",20,0]
["Slutdisponering, slam - højteknologisk (slamtørring), SRO","PE",10,0]
["Slutdisponering, slam - højteknologisk (slamtørring og -forbrænding), Konstruktioner","PE",60,0]
["Slutdisponering, slam - højteknologisk (slamtørring og -forbrænding), Mek/EL","PE",20,0]
["Slutdisponering, slam - højteknologisk (slamtørring og -forbrænding), SRO","PE",10,0]
[]
["Renseanlæg 33"]
["Mindre renseanlæg"]
["Mindre renseanlæg < 5.000 PE uden mulighed for opdeling","PE",40,0]
["Renseanlæg >= 5.000 PE, Vandbehandling"]
["Indløb med riste, Konstruktioner","PE",60,0]
["Indløb med riste, Mek/EL","PE",20,0]
["Indløb med riste, SRO","PE",10,0]
["Sand- og fedtfang, Kontruktioner","PE",60,0]
["Sand- og fedtfang, Mek/EL","PE",20,0]
["Sand- og fedtfang, SRO","PE",10,0]
["Forklaring, Konstruktioner","PE",60,0]
["Forklaring, Mek/EL","PE",20,0]
["Forklaring, SRO","PE",10,0]
["Beluftningstanke, Konstruktioner","PE",60,0]
["Beluftningstanke, Mek/EL","PE",20,0]
["Beluftningstanke, SRO","PE",10,0]
["Efterklaringstanke, Konstruktioner","PE",60,0]
["Efterklaringstanke, Mek/El","PE",20,0]
["Efterklaringstanke, SRO","PE",10,0]
["Efterbehandlingsanlæg (sandfilter), Konstruktioner","PE",60,0]
["Efterbehandlingsanlæg (sandfilter), Mek/EL","PE",20,0]
["Efterbehandlingsanlæg (sandfilter), SRO","PE",10,0]
["Renseanlæg >= 5.000 PE, Slambehandling"]
["Forafvanding, slam, Konstruktion","PE",60,0]
["Forafvanding, slam, Mek/EL","PE",20,0]
["Forafvanding, slam, SRO","PE",10,0]
["Rådnetanke, slam, Konstruktioner","PE",60,0]
["Rådnetanke, slam, Mek/EL","PE",20,0]
["Rådnetanke, slam, SRO","PE",10,0]
["Gasdisponering, Konstruktioner","PE",60,0]
["Gasdisponering, Mek/EL","PE",20,0]
["Gasdisponering, SRO","PE",10,0]
["Gasdisponering - elproduktionsanlæg, Konstruktioner","PE",60,0]
["Gasdisponering - elproduktionsanlæg, Mek/EL","PE",20,0]
["Gasdisponering - elproduktionsanlæg, SRO","PE",10,0]
["Slutafvanding, slam - lavteknologisk (slambede), Konstruktioner","PE",60,0]
["Slutafvanding, slam - lavteknologisk (slambede), Mek/EL","PE",20,0]
["Slutafvanding, slam - lavteknologisk (slambede), SRO","PE",10,0]
["Slutafvanding, slam - højteknologisk (centrifuger), Konstruktioner","PE",60,0]
["Slutafvanding, slam - højteknologisk (centrifuger), Mek/El","PE",20,0]
["Slutafvanding, slam - højteknologisk (centrifuger), SRO","PE",10,0]
["Renseanlæg >= 5.000 PE, Slamdisponering"]
["Slutdisponering, slam - lavteknologisk (slammineralisering), Konstruktioner","PE",60,0]
["Slutdisponering, slam - lavteknologisk (slammineralisering), Mek/EL","PE",20,0]
["Slutdisponering, slam - lavteknologisk (slammineralisering), SRO","PE",10,0]
["Slutdisponering, slam - højteknologisk (slamtørring), Konstruktioner","PE",60,0]
["Slutdisponering, slam - højteknologisk (slamtørring), Mek/EL","PE",20,0]
["Slutdisponering, slam - højteknologisk (slamtørring), SRO","PE",10,0]
["Slutdisponering, slam - højteknologisk (slamtørring og -forbrænding), Konstruktioner","PE",60,0]
["Slutdisponering, slam - højteknologisk (slamtørring og -forbrænding), Mek/EL","PE",20,0]
["Slutdisponering, slam - højteknologisk (slamtørring og -forbrænding), SRO","PE",10,0]
["Renseanlæg 34"]
["Mindre renseanlæg"]
["Mindre renseanlæg < 5.000 PE uden mulighed for opdeling","PE",40,0]
["Renseanlæg >= 5.000 PE, Vandbehandling"]
["Indløb med riste, Konstruktioner","PE",60,0]
["Indløb med riste, Mek/EL","PE",20,0]
["Indløb med riste, SRO","PE",10,0]
["Sand- og fedtfang, Kontruktioner","PE",60,0]
["Sand- og fedtfang, Mek/EL","PE",20,0]
["Sand- og fedtfang, SRO","PE",10,0]
["Forklaring, Konstruktioner","PE",60,0]
["Forklaring, Mek/EL","PE",20,0]
["Forklaring, SRO","PE",10,0]
["Beluftningstanke, Konstruktioner","PE",60,0]
["Beluftningstanke, Mek/EL","PE",20,0]
["Beluftningstanke, SRO","PE",10,0]
["Efterklaringstanke, Konstruktioner","PE",60,0]
["Efterklaringstanke, Mek/El","PE",20,0]
["Efterklaringstanke, SRO","PE",10,0]
["Efterbehandlingsanlæg (sandfilter), Konstruktioner","PE",60,0]
["Efterbehandlingsanlæg (sandfilter), Mek/EL","PE",20,0]
["Efterbehandlingsanlæg (sandfilter), SRO","PE",10,0]
["Renseanlæg >= 5.000 PE, Slambehandling"]
["Forafvanding, slam, Konstruktion","PE",60,0]
["Forafvanding, slam, Mek/EL","PE",20,0]
["Forafvanding, slam, SRO","PE",10,0]
["Rådnetanke, slam, Konstruktioner","PE",60,0]
["Rådnetanke, slam, Mek/EL","PE",20,0]
["Rådnetanke, slam, SRO","PE",10,0]
["Gasdisponering, Konstruktioner","PE",60,0]
["Gasdisponering, Mek/EL","PE",20,0]
["Gasdisponering, SRO","PE",10,0]
["Gasdisponering - elproduktionsanlæg, Konstruktioner","PE",60,0]
["Gasdisponering - elproduktionsanlæg, Mek/EL","PE",20,0]
["Gasdisponering - elproduktionsanlæg, SRO","PE",10,0]
["Slutafvanding, slam - lavteknologisk (slambede), Konstruktioner","PE",60,0]
["Slutafvanding, slam - lavteknologisk (slambede), Mek/EL","PE",20,0]
["Slutafvanding, slam - lavteknologisk (slambede), SRO","PE",10,0]
["Slutafvanding, slam - højteknologisk (centrifuger), Konstruktioner","PE",60,0]
["Slutafvanding, slam - højteknologisk (centrifuger), Mek/El","PE",20,0]
["Slutafvanding, slam - højteknologisk (centrifuger), SRO","PE",10,0]
["Renseanlæg >= 5.000 PE, Slamdisponering"]
["Slutdisponering, slam - lavteknologisk (slammineralisering), Konstruktioner","PE",60,0]
["Slutdisponering, slam - lavteknologisk (slammineralisering), Mek/EL","PE",20,0]
["Slutdisponering, slam - lavteknologisk (slammineralisering), SRO","PE",10,0]
["Slutdisponering, slam - højteknologisk (slamtørring), Konstruktioner","PE",60,0]
["Slutdisponering, slam - højteknologisk (slamtørring), Mek/EL","PE",20,0]
["Slutdisponering, slam - højteknologisk (slamtørring), SRO","PE",10,0]
["Slutdisponering, slam - højteknologisk (slamtørring og -forbrænding), Konstruktioner","PE",60,0]
["Slutdisponering, slam - højteknologisk (slamtørring og -forbrænding), Mek/EL","PE",20,0]
["Slutdisponering, slam - højteknologisk (slamtørring og -forbrænding), SRO","PE",10,0]
["Renseanlæg 35"]
["Mindre renseanlæg"]
["Mindre renseanlæg < 5.000 PE uden mulighed for opdeling","PE",40,0]
["Renseanlæg >= 5.000 PE, Vandbehandling"]
["Indløb med riste, Konstruktioner","PE",60,0]
["Indløb med riste, Mek/EL","PE",20,0]
["Indløb med riste, SRO","PE",10,0]
["Sand- og fedtfang, Kontruktioner","PE",60,0]
["Sand- og fedtfang, Mek/EL","PE",20,0]
["Sand- og fedtfang, SRO","PE",10,0]
["Forklaring, Konstruktioner","PE",60,0]
["Forklaring, Mek/EL","PE",20,0]
["Forklaring, SRO","PE",10,0]
["Beluftningstanke, Konstruktioner","PE",60,0]
["Beluftningstanke, Mek/EL","PE",20,0]
["Beluftningstanke, SRO","PE",10,0]
["Efterklaringstanke, Konstruktioner","PE",60,0]
["Efterklaringstanke, Mek/El","PE",20,0]
["Efterklaringstanke, SRO","PE",10,0]
["Efterbehandlingsanlæg (sandfilter), Konstruktioner","PE",60,0]
["Efterbehandlingsanlæg (sandfilter), Mek/EL","PE",20,0]
["Efterbehandlingsanlæg (sandfilter), SRO","PE",10,0]
["Renseanlæg >= 5.000 PE, Slambehandling"]
["Forafvanding, slam, Konstruktion","PE",60,0]
["Forafvanding, slam, Mek/EL","PE",20,0]
["Forafvanding, slam, SRO","PE",10,0]
["Rådnetanke, slam, Konstruktioner","PE",60,0]
["Rådnetanke, slam, Mek/EL","PE",20,0]
["Rådnetanke, slam, SRO","PE",10,0]
["Gasdisponering, Konstruktioner","PE",60,0]
["Gasdisponering, Mek/EL","PE",20,0]
["Gasdisponering, SRO","PE",10,0]
["Gasdisponering - elproduktionsanlæg, Konstruktioner","PE",60,0]
["Gasdisponering - elproduktionsanlæg, Mek/EL","PE",20,0]
["Gasdisponering - elproduktionsanlæg, SRO","PE",10,0]
["Slutafvanding, slam - lavteknologisk (slambede), Konstruktioner","PE",60,0]
["Slutafvanding, slam - lavteknologisk (slambede), Mek/EL","PE",20,0]
["Slutafvanding, slam - lavteknologisk (slambede), SRO","PE",10,0]
["Slutafvanding, slam - højteknologisk (centrifuger), Konstruktioner","PE",60,0]
["Slutafvanding, slam - højteknologisk (centrifuger), Mek/El","PE",20,0]
["Slutafvanding, slam - højteknologisk (centrifuger), SRO","PE",10,0]
["Renseanlæg >= 5.000 PE, Slamdisponering"]
["Slutdisponering, slam - lavteknologisk (slammineralisering), Konstruktioner","PE",60,0]
["Slutdisponering, slam - lavteknologisk (slammineralisering), Mek/EL","PE",20,0]
["Slutdisponering, slam - lavteknologisk (slammineralisering), SRO","PE",10,0]
["Slutdisponering, slam - højteknologisk (slamtørring), Konstruktioner","PE",60,0]
["Slutdisponering, slam - højteknologisk (slamtørring), Mek/EL","PE",20,0]
["Slutdisponering, slam - højteknologisk (slamtørring), SRO","PE",10,0]
["Slutdisponering, slam - højteknologisk (slamtørring og -forbrænding), Konstruktioner","PE",60,0]
["Slutdisponering, slam - højteknologisk (slamtørring og -forbrænding), Mek/EL","PE",20,0]
["Slutdisponering, slam - højteknologisk (slamtørring og -forbrænding), SRO","PE",10,0]
["Renseanlæg 36"]
["Mindre renseanlæg"]
["Mindre renseanlæg < 5.000 PE uden mulighed for opdeling","PE",40,0]
["Renseanlæg >= 5.000 PE, Vandbehandling"]
["Indløb med riste, Konstruktioner","PE",60,0]
["Indløb med riste, Mek/EL","PE",20,0]
["Indløb med riste, SRO","PE",10,0]
["Sand- og fedtfang, Kontruktioner","PE",60,0]
["Sand- og fedtfang, Mek/EL","PE",20,0]
["Sand- og fedtfang, SRO","PE",10,0]
["Forklaring, Konstruktioner","PE",60,0]
["Forklaring, Mek/EL","PE",20,0]
["Forklaring, SRO","PE",10,0]
["Beluftningstanke, Konstruktioner","PE",60,0]
["Beluftningstanke, Mek/EL","PE",20,0]
["Beluftningstanke, SRO","PE",10,0]
["Efterklaringstanke, Konstruktioner","PE",60,0]
["Efterklaringstanke, Mek/El","PE",20,0]
["Efterklaringstanke, SRO","PE",10,0]
["Efterbehandlingsanlæg (sandfilter), Konstruktioner","PE",60,0]
["Efterbehandlingsanlæg (sandfilter), Mek/EL","PE",20,0]
["Efterbehandlingsanlæg (sandfilter), SRO","PE",10,0]
["Renseanlæg >= 5.000 PE, Slambehandling"]
["Forafvanding, slam, Konstruktion","PE",60,0]
["Forafvanding, slam, Mek/EL","PE",20,0]
["Forafvanding, slam, SRO","PE",10,0]
["Rådnetanke, slam, Konstruktioner","PE",60,0]
["Rådnetanke, slam, Mek/EL","PE",20,0]
["Rådnetanke, slam, SRO","PE",10,0]
["Gasdisponering, Konstruktioner","PE",60,0]
["Gasdisponering, Mek/EL","PE",20,0]
["Gasdisponering, SRO","PE",10,0]
["Gasdisponering - elproduktionsanlæg, Konstruktioner","PE",60,0]
["Gasdisponering - elproduktionsanlæg, Mek/EL","PE",20,0]
["Gasdisponering - elproduktionsanlæg, SRO","PE",10,0]
["Slutafvanding, slam - lavteknologisk (slambede), Konstruktioner","PE",60,0]
["Slutafvanding, slam - lavteknologisk (slambede), Mek/EL","PE",20,0]
["Slutafvanding, slam - lavteknologisk (slambede), SRO","PE",10,0]
["Slutafvanding, slam - højteknologisk (centrifuger), Konstruktioner","PE",60,0]
["Slutafvanding, slam - højteknologisk (centrifuger), Mek/El","PE",20,0]
["Slutafvanding, slam - højteknologisk (centrifuger), SRO","PE",10,0]
["Renseanlæg >= 5.000 PE, Slamdisponering"]
["Slutdisponering, slam - lavteknologisk (slammineralisering), Konstruktioner","PE",60,0]
["Slutdisponering, slam - lavteknologisk (slammineralisering), Mek/EL","PE",20,0]
["Slutdisponering, slam - lavteknologisk (slammineralisering), SRO","PE",10,0]
["Slutdisponering, slam - højteknologisk (slamtørring), Konstruktioner","PE",60,0]
["Slutdisponering, slam - højteknologisk (slamtørring), Mek/EL","PE",20,0]
["Slutdisponering, slam - højteknologisk (slamtørring), SRO","PE",10,0]
["Slutdisponering, slam - højteknologisk (slamtørring og -forbrænding), Konstruktioner","PE",60,0]
["Slutdisponering, slam - højteknologisk (slamtørring og -forbrænding), Mek/EL","PE",20,0]
["Slutdisponering, slam - højteknologisk (slamtørring og -forbrænding), SRO","PE",10,0]

{"sheet":"Distributionsanlæg","index":1,"n_rows":322,"n_cols":6,"rows_kept":322,"cut":false,"hidden":false,"merged":[[0,5,1,5],[0,0,1,0],[0,1,1,1],[0,2,1,2],[0,3,1,3],[0,4,1,4]]}
["Distributionsanlæg","Enhed","Standard-levetid","Samlet mængde per 31/12-2014","Samlet mængde per 31/12-2015","Bemærk-ninger"]
[]
["Ledningsnet - Land"]
["Ledningsnet ≤ Ø 200 mm ","meter",75,159267.26999999999,193931.43]
["Ø 200 mm < Ledningsnet ≤ Ø 500 mm ","meter",75,76277.399999999994,77009.86]
["Ø 500 mm < Ledningsnet ≤ Ø 800 mm","meter",75,22655.149999999983,22407.37]
["Ø 800 mm < Ledningsnet ≤ Ø 1000 mm","meter",75,7447.1100000000033,7668.53]
["Ø 1000 mm < Ledningsnet ≤ Ø 1200 mm","meter",75,3600.8500000000004,3863.48]
["Ø 1200 mm < Ledningsnet ≤ Ø 1600 mm","meter",75,3233.7499999999995,3437.65]
["Ledningsnet > Ø 1600 mm (rørbassiner og transportledninger)","meter",75,60.910000000000004,180.3]
["Strømpeforing ≤ Ø 200 mm","meter",50,0,3375.1208364177796,"Forbedret registrering"]
["Strømpeforing Ø 200 mm < Ledningsnet ≤ Ø 500 mm","meter",50,572.32999999999993,2209.1561184052098,"Forbedret registrering"]
["Strømpeforing Ø 500 mm < Ledningsnet ≤ Ø 800 mm","meter",50,0,15.432117695200001]
["Strømpeforing Ø 800 mm < Ledningsnet ≤ Ø 1000 mm","meter",50,0,0]
["Strømpeforing Ø 1000 mm < Ledningsnet ≤ Ø 1200 mm","meter",50,0,0]
["Strømpeforing Ø 1200 mm < Ledningsnet ≤ Ø 1600 mm","meter",50,0,0]
["Ledningsnet - By"]
["Ledningsnet ≤ Ø 200 mm ","meter",75,401122.29,695520.35]
["Ø 200 mm < Ledningsnet ≤ Ø 500 mm ","meter",75,344987.95,361932.38941696583]
["Ø 500 mm < Ledningsnet ≤ Ø 800 mm","meter",75,95478.500000000204,98579.050454255615]
["Ø 800 mm < Ledningsnet ≤ Ø 1000 mm","meter",75,28863.22,28537.264314937849]
["Ø 1000 mm < Ledningsnet ≤ Ø 1200 mm","meter",75,12930.179999999997,13155.529082616085]
["Ø 1200 mm < Ledningsnet ≤ Ø 1600 mm","meter",75,8676.58,8853.1135596262557]
["Ledningsnet > Ø 1600 mm (rørbassiner og transportledninger)","meter",75,845.67999999999972,726.45810234675992]
["Strømpeforing ≤ Ø 200 mm","meter",50,2613.5800000000004,4289.66]
["Strømpeforing Ø 200 mm < Ledningsnet ≤ Ø 500 mm","meter",50,1912.9100000000003,3358.92]
["Strømpeforing Ø 500 mm < Ledningsnet ≤ Ø 800 mm","meter",50,655.37000000000012,934.11847356186013]
["Strømpeforing Ø 800 mm < Ledningsnet ≤ Ø 1000 mm","meter",50,325.69,325.7195201655]
["Strømpeforing Ø 1000 mm < Ledningsnet ≤ Ø 1200 mm","meter",50,0,0]
["Strømpeforing Ø 1200 mm < Ledningsnet ≤ Ø 1600 mm","meter",50,0,0]
["Ledningsnet - City"]
["Ledningsnet ≤ Ø 200 mm ","meter",75,11718.01,12355.01]
["Ø 200 mm < Ledningsnet ≤ Ø 500 mm ","meter",75,29237.62,29537.342615730664]
["Ø 500 mm < Ledningsnet ≤ Ø 800 mm","meter",75,9043.3499999999985,9286.7487870675523]
["Ø 800 mm < Ledningsnet ≤ Ø 1000 mm","meter",75,3829.24,3857.0609607010288]
["Ø 1000 mm < Ledningsnet ≤ Ø 1200 mm","meter",75,331.09000000000003,331.12130210419997]
["Ø 1200 mm < Ledningsnet ≤ Ø 1600 mm","meter",75,677.91,790.28293755719983]
["Ledningsnet > Ø 1600 mm (rørbassiner og transportledninger)","meter",75,382.08000000000004,382.14479812956]
["Strømpeforing ≤ Ø 200 mm","meter",50,0,132.63026391693998]
["Strømpeforing Ø 200 mm < Ledningsnet ≤ Ø 500 mm","meter",50,144.18,362.74806391681]
["Strømpeforing Ø 500 mm < Ledningsnet ≤ Ø 800 mm","meter",50,83.35,165.2187027782]
["Strømpeforing Ø 800 mm < Ledningsnet ≤ Ø 1000 mm","meter",50,0,0]
["Strømpeforing Ø 1000 mm < Ledningsnet ≤ Ø 1200 mm","meter",50,0,0]
["Strømpeforing Ø 1200 mm < Ledningsnet ≤ Ø 1600 mm","meter",50,0,0]
["Ledningsnet - Indre city"]
["Ledningsnet ≤ Ø 200 mm ","meter",75,0,{"$f":"D46","v":0}]
["Ø 200 mm < Ledningsnet ≤ Ø 500 mm ","meter",75,0,{"$f":"D47","v":0}]
["Ø 500 mm < Ledningsnet ≤ Ø 800 mm","meter",75,0,0]
["Ø 800 mm < Ledningsnet ≤ Ø 1000 mm","meter",75,0,0]
["Ø 1000 mm < Ledningsnet ≤ Ø 1200 mm","meter",75,0,0]
["Ø 1200 mm < Ledningsnet ≤ Ø 1600 mm","meter",75,0,0]
["Ledningsnet > Ø 1600 mm (rørbassiner og transportledninger)","meter",75,0,0]
["Strømpeforing ≤ Ø 200 mm","meter",50,0,0]
["Strømpeforing Ø 200 mm < Ledningsnet ≤ Ø 500 mm","meter",50,0,0]
["Strømpeforing Ø 500 mm < Ledningsnet ≤ Ø 800 mm","meter",50,0,0]
["Strømpeforing Ø 800 mm < Ledningsnet ≤ Ø 1000 mm","meter",50,0,0]
["Strømpeforing Ø 1000 mm < Ledningsnet ≤ Ø 1200 mm","meter",50,0,0]
["Strømpeforing Ø 1200 mm < Ledningsnet ≤ Ø 1600 mm","meter",50,0,0]
["Brønde og stik, ledningsnet - Land"]
["Brønde","stk.",75,2740,3543,"NB: Fejl i 2014-opgørelsen."]
["Stik","stk.",75,2510,2513,"Status 31/12-14 + tilført 2015"]
["Brønde og stik, ledningsnet - By"]
["Brønde","stk.",75,12110,20134,"NB: Fejl i 2014-opgørelsen."]
["Stik","stk.",75,37519,37966,"Status 31/12-14 + tilført 2015 - fjernet 2015"]
["Brønde og stik, ledningsnet - City"]
["Brønde","stk.",75,375,1234,"NB: Fejl i 2014-opgørelsen."]
["Stik","stk.",75,2628,2664,"Status 31/12-14 + tilført 2015 - fjernet 2015"]
["Brønde og stik, ledningsnet - Indre city"]
["Brønde","stk.",75,0,{"$f":"D69","v":0}]
["Stik","stk.",75,0,{"$f":"D70","v":0}]
["Små pumpestationer inkl. SRO-anlæg - Land"]
["Tryksatte minipumpestationer (husstandssystemer)","stk.",30,11,{"$f":"D72","v":11},"Uændret"]
["Pumpestationer i brønde (< 6,25 m2), Konstruktioner","stk.",50,89,90,"1 etabl. 2015"]
["Pumpestationer i brønde (< 6,25 m2), Mek/EL","stk.",20,89,90,"1 etabl. 2015"]
["Pumpestationer i brønde (< 6,25 m2), SRO","stk.",10,89,90,"1 etabl. 2015"]
["Pumpestationer m. overbygning (< 20 m2), Konstruktioner","stk.",50,2,{"$f":"D76","v":2},"Uændret"]
["Pumpestationer m. overbygning (< 20 m2), Mek/EL","stk.",20,2,{"$f":"D77","v":2},"Uændret"]
["Pumpestationer m. overbygning (< 20 m2), SRO","stk.",10,2,2,"Uændret"]
["Pumpestationer i underjordiske bygværker (<50 m2), Konstruktioner","stk.",50,2,2,"Uændret"]
["Pumpestationer i underjordiske bygværker (<50 m2), Mek/El","stk.",20,2,2,"Uændret"]
["Pumpestationer i underjordiske bygværker (<50 m2), SRO","stk.",10,2,2,"Uændret"]
["Små pumpestationer inkl. SRO-anlæg - By"]
["Tryksatte minipumpestationer (husstandssystemer)","stk.",30,0,{"$f":"D83","v":0}]
["Pumpestationer i brønde (< 6,25 m2), Konstruktioner","stk.",50,54,55,"1 etabl. 2015"]
["Pumpestationer i brønde (< 6,25 m2), Mek/EL","stk.",20,54,55,"1 etabl. 2015"]
["Pumpestationer i brønde (< 6,25 m2), SRO","stk.",10,54,55,"1 etabl. 2015"]
["Pumpestationer m. overbygning (< 20 m2), Konstruktioner","stk.",50,3,{"$f":"D87","v":3},"Uændret"]
["Pumpestationer m. overbygning (< 20 m2), Mek/EL","stk.",20,3,{"$f":"D88","v":3},"Uændret"]
["Pumpestationer m. overbygning (< 20 m2), SRO","stk.",10,3,3,"Uændret"]
["Pumpestationer i underjordiske bygværker (<50 m2), Konstruktioner","stk.",50,7,7,"Uændret"]
["Pumpestationer i underjordiske bygværker (<50 m2), Mek/El","stk.",20,7,7,"Uændret"]
["Pumpestationer i underjordiske bygværker (<50 m2), SRO","stk.",10,7,7,"Uændret"]
["Små pumpestationer inkl. SRO-anlæg - City"]
["Tryksatte minipumpestationer (husstandssystemer)","stk.",30,0,{"$f":"D94","v":0}]
["Pumpestationer i brønde (< 6,25 m2), Konstruktioner","stk.",50,1,2,"1 etabl. 2015"]
["Pumpestationer i brønde (< 6,25 m2), Mek/EL","stk.",20,1,2,"1 etabl. 2015"]
["Pumpestationer i brønde (< 6,25 m2), SRO","stk.",10,0,{"$f":"D97","v":0}]
["Pumpestationer m. overbygning (< 20 m2), Konstruktioner","stk.",50,0,{"$f":"D98","v":0}]
["Pumpestationer m. overbygning (< 20 m2), Mek/EL","stk.",20,0,0]
["Pumpestationer m. overbygning (< 20 m2), SRO","stk.",10,0,0]
["Pumpestationer i underjordiske bygværker (<50 m2), Konstruktioner","stk.",50,0,0]
["Pumpestationer i underjordiske bygværker (<50 m2), Mek/El","stk.",20,0,0]
["Pumpestationer i underjordiske bygværker (<50 m2), SRO","stk.",10,0,0]
["Små pumpestationer inkl. SRO-anlæg - Indre city"]
["Tryksatte minipumpestationer (husstandssystemer)","stk.",30,0,{"$f":"D105","v":0}]
["Pumpestationer i brønde (< 6,25 m2), Konstruktioner","stk.",50,0,{"$f":"D106","v":0}]
["Pumpestationer i brønde (< 6,25 m2), Mek/EL","stk.",20,0,0]
["Pumpestationer i brønde (< 6,25 m2), SRO","stk.",10,0,0]
["Pumpestationer m. overbygning (< 20 m2), Konstruktioner","stk.",50,0,0]
["Pumpestationer m. overbygning (< 20 m2), Mek/EL","stk.",20,0,0]
["Pumpestationer m. overbygning (< 20 m2), SRO","stk.",10,0,0]
["Pumpestationer i underjordiske bygværker (<50 m2), Konstruktioner","stk.",50,0,0]
["Pumpestationer i underjordiske bygværker (<50 m2), Mek/El","stk.",20,0,0]
["Pumpestationer i underjordiske bygværker (<50 m2), SRO","stk.",10,0,0]
["Store pumpestationer: inkl. SRO-anlæg - Land"]
["Kælder","m2",75,150,{"$f":"D116","v":150},"Uændret"]
["Pumpeinstallation Miljøklasse A (100-300 l/s) - Mek/EL","stk.",20,0,{"$f":"D117","v":0}]
["Pumpeinstallation Miljøklasse A (100-300 l/s) - SRO","stk.",10,0,{"$f":"D118","v":0}]
["Pumpeinstallation Miljøklasse A (300-600 l/s) - Mek/EL","stk.",20,1,1,"Uændret"]
["Pumpeinstallation Miljøklasse A (300-600 l/s) - SRO","stk.",10,1,1,"Uændret"]
["Pumpeinstallation Miljøklasse A (600-1.000 l/s) - Mek/EL","stk.",20,null,0]
["Pumpeinstallation Miljøklasse A (600-1.000 l/s) - SRO","stk.",10,0,0]
["Pumpeinstallation Miljøklasse A (1.000-1.500 l/s) - Mek/EL","stk.",20,0,0]
["Pumpeinstallation Miljøklasse A (1.000-1.500 l/s) - SRO","stk.",10,0,0]
["Pumpeinstallation Miljøklasse B (100-300 l/s) - Mek/EL","stk.",20,0,0]
["Pumpeinstallation Miljøklasse B (100-300 l/s) - SRO","stk.",10,0,0]
["Pumpeinstallation Miljøklasse B (300-600 l/s) - Mek/EL","stk.",20,0,0]
["Pumpeinstallation Miljøklasse B (300-600 l/s) - SRO","stk.",10,0,0]
["Pumpeinstallation Miljøklasse B (600-1.000 l/s) - Mek/EL","stk.",20,0,0]
["Pumpeinstallation Miljøklasse B (600-1.000 l/s) - SRO","stk.",10,0,0]
["Pumpeinstallation Miljøklasse B (1.000-1.500 l/s) - Mek/EL","stk.",20,0,0]
["Pumpeinstallation Miljøklasse B (1.000-1.500 l/s) - SRO","stk.",10,0,0]
["Overbygning","m2",75,150,150,"Uændret"]
["Store pumpestationer: inkl. SRO-anlæg - By"]
["Kælder","m2",75,0,{"$f":"D135","v":0}]
["Pumpeinstallation Miljøklasse A (100-300 l/s) - Mek/EL","stk.",20,3,{"$f":"D136","v":3},"Uændret"]
["Pumpeinstallation Miljøklasse A (100-300 l/s) - SRO","stk.",10,3,3,"Uændret"]
["Pumpeinstallation Miljøklasse A (300-600 l/s) - Mek/EL","stk.",20,1,1,"Uændret"]
["Pumpeinstallation Miljøklasse A (300-600 l/s) - SRO","stk.",10,1,1,"Uændret"]
["Pumpeinstallation Miljøklasse A (600-1.000 l/s) - Mek/EL","stk.",20,0,0]
["Pumpeinstallation Miljøklasse A (600-1.000 l/s) - SRO","stk.",10,0,0]
["Pumpeinstallation Miljøklasse A (1.000-1.500 l/s) - Mek/EL","stk.",20,0,0]
["Pumpeinstallation Miljøklasse A (1.000-1.500 l/s) - SRO","stk.",10,0,0]
["Pumpeinstallation Miljøklasse B (100-300 l/s) - Mek/EL","stk.",20,0,0]
["Pumpeinstallation Miljøklasse B (100-300 l/s) - SRO","stk.",10,0,0]
["Pumpeinstallation Miljøklasse B (300-600 l/s) - Mek/EL","stk.",20,0,0]
["Pumpeinstallation Miljøklasse B (300-600 l/s) - SRO","stk.",10,0,0]
["Pumpeinstallation Miljøklasse B (600-1.000 l/s) - Mek/EL","stk.",20,0,0]
["Pumpeinstallation Miljøklasse B (600-1.000 l/s) - SRO","stk.",10,0,0]
["Pumpeinstallation Miljøklasse B (1.000-1.500 l/s) - Mek/EL","stk.",20,0,0]
["Pumpeinstallation Miljøklasse B (1.000-1.500 l/s) - SRO","stk.",10,0,0]
["Overbygning ","m2",75,17,17,"Uændret"]
["Store pumpestationer: inkl. SRO-anlæg - City"]
["Kælder","m2",75,0,{"$f":"D154","v":0}]
["Pumpeinstallation Miljøklasse A (100-300 l/s) - Mek/EL","stk.",20,0,{"$f":"D155","v":0}]
["Pumpeinstallation Miljøklasse A (100-300 l/s) - SRO","stk.",10,0,0]
["Pumpeinstallation Miljøklasse A (300-600 l/s) - Mek/EL","stk.",20,0,0]
["Pumpeinstallation Miljøklasse A (300-600 l/s) - SRO","stk.",10,0,0]
["Pumpeinstallation Miljøklasse A (600-1.000 l/s) - Mek/EL","stk.",20,0,0]
["Pumpeinstallation Miljøklasse A (600-1.000 l/s) - SRO","stk.",10,0,0]
["Pumpeinstallation Miljøklasse A (1.000-1.500 l/s) - Mek/EL","stk.",20,0,0]
["Pumpeinstallation Miljøklasse A (1.000-1.500 l/s) - SRO","stk.",10,0,0]
["Pumpeinstallation Miljøklasse B (100-300 l/s) - Mek/EL","stk.",20,0,0]
["Pumpeinstallation Miljøklasse B (100-300 l/s) - SRO","stk.",10,0,0]
["Pumpeinstallation Miljøklasse B (300-600 l/s) - Mek/EL","stk.",20,0,0]
["Pumpeinstallation Miljøklasse B (300-600 l/s) - SRO","stk.",10,0,0]
["Pumpeinstallation Miljøklasse B (600-1.000 l/s) - Mek/EL","stk.",20,0,0]
["Pumpeinstallation Miljøklasse B (600-1.000 l/s) - SRO","stk.",10,0,0]
["Pumpeinstallation Miljøklasse B (1.000-1.500 l/s) - Mek/EL","stk.",20,0,0]
["Pumpeinstallation Miljøklasse B (1.000-1.500 l/s) - SRO","stk.",10,0,0]
["Overbygning ","m2",75,0,0]
["Store pumpestationer: inkl. SRO-anlæg - Indre city"]
["Kælder","m2",75,0,{"$f":"D173","v":0}]
["Pumpeinstallation Miljøklasse A (100-300 l/s) - Mek/EL","stk.",20,0,{"$f":"D174","v":0}]
["Pumpeinstallation Miljøklasse A (100-300 l/s) - SRO","stk.",10,0,0]
["Pumpeinstallation Miljøklasse A (300-600 l/s) - Mek/EL","stk.",20,0,0]
["Pumpeinstallation Miljøklasse A (300-600 l/s) - SRO","stk.",10,0,0]
["Pumpeinstallation Miljøklasse A (600-1.000 l/s) - Mek/EL","stk.",20,0,0]
["Pumpeinstallation Miljøklasse A (600-1.000 l/s) - SRO","stk.",10,0,0]
["Pumpeinstallation Miljøklasse A (1.000-1.500 l/s) - Mek/EL","stk.",20,0,0]
["Pumpeinstallation Miljøklasse A (1.000-1.500 l/s) - SRO","stk.",10,0,0]
["Pumpeinstallation Miljøklasse B (100-300 l/s) - Mek/EL","stk.",20,0,0]
["Pumpeinstallation Miljøklasse B (100-300 l/s) - SRO","stk.",10,0,0]
["Pumpeinstallation Miljøklasse B (300-600 l/s) - Mek/EL","stk.",20,0,0]
["Pumpeinstallation Miljøklasse B (300-600 l/s) - SRO","stk.",10,0,0]
["Pumpeinstallation Miljøklasse B (600-1.000 l/s) - Mek/EL","stk.",20,0,0]
["Pumpeinstallation Miljøklasse B (600-1.000 l/s) - SRO","stk.",10,0,0]
["Pumpeinstallation Miljøklasse B (1.000-1.500 l/s) - Mek/EL","stk.",20,0,0]
["Pumpeinstallation Miljøklasse B (1.000-1.500 l/s) - SRO","stk.",10,0,0]
["Overbygning","m2",75,0,0]
["Overløbsbygværker - Land"]
["Kælder (< 7 m2) ","stk.",75,10,{"$f":"D192","v":10},"Uændret"]
["Kælder (7 - 20 m2) ","m2",75,45,{"$f":"D193","v":45},"Uændret"]
["Kælder (20 - 30 m2)","m2",75,0,0]
["Installationer \"ingen eller faste riste\" (mindre end 7 m2)","stk.",20,10,10,"Uændret"]
["Installationer \"mekaniske riste og SRO\" Miljøklasse A. (7-20 m2) - Mek/EL","stk.",20,1,1,"Uændret"]
["Installationer \"mekaniske riste og SRO\" Miljøklasse A. (7-20 m2) - SRO","stk.",10,3,3,"Uændret"]
["Installationer \"mekaniske riste og SRO\" Miljøklasse A. (20-30 m2) - Mek/EL","stk.",20,null,0]
["Installationer \"mekaniske riste og SRO\" Miljøklasse A. (20-30 m2) - SRO","stk.",10,1,1,"Uændret"]
["Installationer \"mekaniske riste og SRO\" Miljøklasse B. (7-20 m2) - Mek/EL","stk.",20,0,0]
["Installationer \"mekaniske riste og SRO\" Miljøklasse B. (7-20 m2) - SRO","stk.",10,0,0]
["Installationer \"mekaniske riste og SRO\" Miljøklasse B. (20-30 m2) - Mek/EL","stk.",20,0,0]
["Installationer \"mekaniske riste og SRO\" Miljøklasse B. (20-30 m2) - SRO","stk.",10,0,0]
["Overbygning","stk.",75,0,0]
["Overløbsbygværker - By"]
["Kælder (< 7 m2) ","stk.",75,0,{"$f":"D206","v":0}]
["Kælder (7 - 20 m2) ","m2",75,0,{"$f":"D207","v":0}]
["Kælder (20 - 30 m2)","m2",75,25,25,"Uændret"]
["Installationer \"ingen eller faste riste\" (mindre end 7 m2)","stk.",20,25,25,"Uændret"]
["Installationer \"mekaniske riste og SRO\" Miljøklasse A. (7-20 m2) - Mek/EL","stk.",20,0,0]
["Installationer \"mekaniske riste og SRO\" Miljøklasse A. (7-20 m2) - SRO","stk.",10,0,0]
["Installationer \"mekaniske riste og SRO\" Miljøklasse A. (20-30 m2) - Mek/EL","stk.",20,0,0]
["Installationer \"mekaniske riste og SRO\" Miljøklasse A. (20-30 m2) - SRO","stk.",10,1,1,"Uændret"]
["Installationer \"mekaniske riste og SRO\" Miljøklasse B. (7-20 m2) - Mek/EL","stk.",20,0,0]
["Installationer \"mekaniske riste og SRO\" Miljøklasse B. (7-20 m2) - SRO","stk.",10,0,0]
["Installationer \"mekaniske riste og SRO\" Miljøklasse B. (20-30 m2) - Mek/EL","stk.",20,0,0]
["Installationer \"mekaniske riste og SRO\" Miljøklasse B. (20-30 m2) - SRO","stk.",10,0,0]
["Overbygning","stk.",75,0,0]
["Overløbsbygværker - City"]
["Kælder (< 7 m2) ","stk.",75,0,{"$f":"D220","v":0}]
["Kælder (7 - 20 m2) ","m2",75,0,{"$f":"D221","v":0}]
["Kælder (20 - 30 m2)","m2",75,0,0]
["Installationer \"ingen eller faste riste\" (mindre end 7 m2)","stk.",20,0,0]
["Installationer \"mekaniske riste og SRO\" Miljøklasse A. (7-20 m2) - Mek/EL","stk.",20,0,0]
["Installationer \"mekaniske riste og SRO\" Miljøklasse A. (7-20 m2) - SRO","stk.",10,0,0]
["Installationer \"mekaniske riste og SRO\" Miljøklasse A. (20-30 m2) - Mek/EL","stk.",20,0,0]
["Installationer \"mekaniske riste og SRO\" Miljøklasse A. (20-30 m2) - SRO","stk.",10,0,0]
["Installationer \"mekaniske riste og SRO\" Miljøklasse B. (7-20 m2) - Mek/EL","stk.",20,0,0]
["Installationer \"mekaniske riste og SRO\" Miljøklasse B. (7-20 m2) - SRO","stk.",10,0,0]
["Installationer \"mekaniske riste og SRO\" Miljøklasse B. (20-30 m2) - Mek/EL","stk.",20,0,0]
["Installationer \"mekaniske riste og SRO\" Miljøklasse B. (20-30 m2) - SRO","stk.",10,0,0]
["Overbygning (efter beliggenhed) ","stk.",75,0,0]
["Overløbsbygværker - Indre city"]
["Kælder (< 7 m2) ","stk.",75,0,{"$f":"D234","v":0}]
["Kælder (7 - 20 m2) ","m2",75,0,{"$f":"D235","v":0}]
["Kælder (20 - 30 m2)","m2",75,0,0]
["Installationer \"ingen eller faste riste\" (mindre end 7 m2)","stk.",20,0,0]
["Installationer \"mekaniske riste og SRO\" Miljøklasse A. (7-20 m2) - Mek/EL","stk.",20,0,0]
["Installationer \"mekaniske riste og SRO\" Miljøklasse A. (7-20 m2) - SRO","stk.",10,0,0]
["Installationer \"mekaniske riste og SRO\" Miljøklasse A. (20-30 m2) - Mek/EL","stk.",20,0,0]
["Installationer \"mekaniske riste og SRO\" Miljøklasse A. (20-30 m2) - SRO","stk.",10,0,0]
["Installationer \"mekaniske riste og SRO\" Miljøklasse B. (7-20 m2) - Mek/EL","stk.",20,0,0]
["Installationer \"mekaniske riste og SRO\" Miljøklasse B. (7-20 m2) - SRO","stk.",10,0,0]
["Installationer \"mekaniske riste og SRO\" Miljøklasse B. (20-30 m2) - Mek/EL","stk.",20,0,0]
["Installationer \"mekaniske riste og SRO\" Miljøklasse B. (20-30 m2) - SRO","stk.",10,0,0]
["Overbygning","stk.",75,0,0]
["Forsinkelsesbassiner - Land"]
["Forsinkelsesbassiner, lukkede uden automatisk rensning og SRO Miljøklasse B (mindre end 1.000 m3)","m³",50,100,{"$f":"D248","v":100},"Uændret"]
["Forsinkelsesbassiner, lukkede med automatisk rensning og SRO Miljøklasse A (500-1.000 m3) - Konstruktioner","m³",75,1220,{"$f":"D249","v":1220},"Uændret"]
["Forsinkelsesbassiner, lukkede med automatisk rensning og SRO Miljøklasse A (500-1.000 m3) - Mek/EL","m³",20,0,0]
["Forsinkelsesbassiner, lukkede med automatisk rensning og SRO Miljøklasse A (500-1.000 m3) - SRO ","m³",10,0,0]
["Forsinkelsesbassiner, lukkede med automatisk rensning og SRO Miljøklasse A (1.000-3.000 m3) - Konstruktioner","m³",75,0,0]
["Forsinkelsesbassiner, lukkede med automatisk rensning og SRO Miljøklasse A (1.000-3.000 m3) - Mek/EL","m³",20,0,0]
["Forsinkelsesbassiner, lukkede med automatisk rensning og SRO Miljøklasse A (1.000-3.000 m3) - SRO","m³",10,0,0]
["Forsinkelsesbassiner, lukkede med automatisk rensning og SRO Miljøklasse A (5.000-10.000 m3) - Konstruktionre","m³",75,0,0]
["Forsinkelsesbassiner, lukkede med automatisk rensning og SRO Miljøklasse A (5.000-10.000 m3) - Mek/EL","m³",20,0,0]
["Forsinkelsesbassiner, lukkede med automatisk rensning og SRO Miljøklasse A (5.000-10.000 m3) - SRO","m³",10,0,0]
["Forsinkelsesbassiner, lukkede med automatisk rensning og SRO Miljøklasse A (større end 10.000 m3) - Konstruktioner","m³",75,0,0]
["Forsinkelsesbassiner, lukkede med automatisk rensning og SRO Miljøklasse A (større end 10.000 m3) - Mek/EL","m³",20,0,0]
["Forsinkelsesbassiner, lukkede med automatisk rensning og SRO Miljøklasse A (større end 10.000 m3) - SRO","m³",10,0,0]
["Forsinkelsesbassiner - By"]
["Forsinkelsesbassiner, lukkede uden automatisk rensning og SRO Miljøklasse B (mindre end 1.000 m3)","m³",50,0,{"$f":"D262","v":0}]
["Forsinkelsesbassiner, lukkede med automatisk rensning og SRO Miljøklasse A (500-1.000 m3) - Konstruktioner","m³",75,2000,2000,"Uændret"]
["Forsinkelsesbassiner, lukkede med automatisk rensning og SRO Miljøklasse A (500-1.000 m3) - Mek/EL","m³",20,0,0]
["Forsinkelsesbassiner, lukkede med automatisk rensning og SRO Miljøklasse A (500-1.000 m3) - SRO ","m³",10,0,0]
["Forsinkelsesbassiner, lukkede med automatisk rensning og SRO Miljøklasse A (1.000-3.000 m3) - Konstruktioner","m³",75,2400,2400,"Uændret"]
["Forsinkelsesbassiner, lukkede med automatisk rensning og SRO Miljøklasse A (1.000-3.000 m3) - Mek/EL","m³",20,0,0]
["Forsinkelsesbassiner, lukkede med automatisk rensning og SRO Miljøklasse A (1.000-3.000 m3) - SRO","m³",10,0,0]
["Forsinkelsesbassiner, lukkede med automatisk rensning og SRO Miljøklasse A (5.000-10.000 m3) - Konstruktionre","m³",75,0,0]
["Forsinkelsesbassiner, lukkede med automatisk rensning og SRO Miljøklasse A (5.000-10.000 m3) - Mek/EL","m³",20,0,0]
["Forsinkelsesbassiner, lukkede med automatisk rensning og SRO Miljøklasse A (5.000-10.000 m3) - SRO","m³",10,0,0]
["Forsinkelsesbassiner, lukkede med automatisk rensning og SRO Miljøklasse A (større end 10.000 m3) - Konstruktioner","m³",75,35680,35680,"Uændret"]
["Forsinkelsesbassiner, lukkede med automatisk rensning og SRO Miljøklasse A (større end 10.000 m3) - Mek/EL","m³",20,0,0]
["Forsinkelsesbassiner, lukkede med automatisk rensning og SRO Miljøklasse A (større end 10.000 m3) - SRO","m³",10,0,{"$f":"D274","v":0}]
["Forsinkelsesbassiner - City"]
["Forsinkelsesbassiner, lukkede uden automatisk rensning og SRO Miljøklasse B (mindre end 1.000 m3)","m³",50,0,{"$f":"D276","v":0}]
["Forsinkelsesbassiner, lukkede med automatisk rensning og SRO Miljøklasse A (500-1.000 m3) - Konstruktioner","m³",75,0,0]
["Forsinkelsesbassiner, lukkede med automatisk rensning og SRO Miljøklasse A (500-1.000 m3) - Mek/EL","m³",20,0,0]
["Forsinkelsesbassiner, lukkede med automatisk rensning og SRO Miljøklasse A (500-1.000 m3) - SRO ","m³",10,0,0]
["Forsinkelsesbassiner, lukkede med automatisk rensning og SRO Miljøklasse A (1.000-3.000 m3) - Konstruktioner","m³",75,0,0]
["Forsinkelsesbassiner, lukkede med automatisk rensning og SRO Miljøklasse A (1.000-3.000 m3) - Mek/EL","m³",20,0,0]
["Forsinkelsesbassiner, lukkede med automatisk rensning og SRO Miljøklasse A (1.000-3.000 m3) - SRO","m³",10,0,0]
["Forsinkelsesbassiner, lukkede med automatisk rensning og SRO Miljøklasse A (5.000-10.000 m3) - Konstruktionre","m³",75,0,0]
["Forsinkelsesbassiner, lukkede med automatisk rensning og SRO Miljøklasse A (5.000-10.000 m3) - Mek/EL","m³",20,0,0]
["Forsinkelsesbassiner, lukkede med automatisk rensning og SRO Miljøklasse A (5.000-10.000 m3) - SRO","m³",10,0,0]
["Forsinkelsesbassiner, lukkede med automatisk rensning og SRO Miljøklasse A (større end 10.000 m3) - Konstruktioner","m³",75,0,0]
["Forsinkelsesbassiner, lukkede med automatisk rensning og SRO Miljøklasse A (større end 10.000 m3) - Mek/EL","m³",20,0,0]
["Forsinkelsesbassiner, lukkede med automatisk rensning og SRO Miljøklasse A (større end 10.000 m3) - SRO","m³",10,0,{"$f":"D288","v":0}]
["Forsinkelsesbassiner - Indre city"]
["Forsinkelsesbassiner, lukkede uden automatisk rensning og SRO Miljøklasse B (mindre end 1.000 m3)","m³",50,0,{"$f":"D290","v":0}]
["Forsinkelsesbassiner, lukkede med automatisk rensning og SRO Miljøklasse A (500-1.000 m3) - Konstruktioner","m³",75,0,0]
["Forsinkelsesbassiner, lukkede med automatisk rensning og SRO Miljøklasse A (500-1.000 m3) - Mek/EL","m³",20,0,0]
["Forsinkelsesbassiner, lukkede med automatisk rensning og SRO Miljøklasse A (500-1.000 m3) - SRO ","m³",10,0,0]
["Forsinkelsesbassiner, lukkede med automatisk rensning og SRO Miljøklasse A (1.000-3.000 m3) - Konstruktioner","m³",75,0,0]
["Forsinkelsesbassiner, lukkede med automatisk rensning og SRO Miljøklasse A (1.000-3.000 m3) - Mek/EL","m³",20,0,0]
["Forsinkelsesbassiner, lukkede med automatisk rensning og SRO Miljøklasse A (1.000-3.000 m3) - SRO","m³",10,0,0]
["Forsinkelsesbassiner, lukkede med automatisk rensning og SRO Miljøklasse A (5.000-10.000 m3) - Konstruktionre","m³",75,0,0]
["Forsinkelsesbassiner, lukkede med automatisk rensning og SRO Miljøklasse A (5.000-10.000 m3) - Mek/EL","m³",20,0,0]
["Forsinkelsesbassiner, lukkede med automatisk rensning og SRO Miljøklasse A (5.000-10.000 m3) - SRO","m³",10,0,0]
["Forsinkelsesbassiner, lukkede med automatisk rensning og SRO Miljøklasse A (større end 10.000 m3) - Konstruktioner","m³",75,0,0]
["Forsinkelsesbassiner, lukkede med automatisk rensning og SRO Miljøklasse A (større end 10.000 m3) - Mek/EL","m³",20,0,0]
["Forsinkelsesbassiner, lukkede med automatisk rensning og SRO Miljøklasse A (større end 10.000 m3) - SRO","m³",10,0,{"$f":"D302","v":0}]
["Sparebassin/laguner - Land"]
["Jordbassin Klasse B","m³",50,0,{"$f":"D304","v":0}]
["Jordbassin Klasse A","m³",50,76075,{"$f":"D305","v":76075},"Uændret"]
["Indløb-/udløbsarrangement","stk.",75,55,55,"Uændret"]
["Andre bygninger (tekniske installationer, målere mv.)","m2",75,0,0]
["Sparebassin/laguner - By"]
["Jordbassin Klasse B","m³",50,0,{"$f":"D309","v":0}]
["Jordbassin Klasse A","m³",50,78278,{"$f":"D310","v":78278},"Uændret"]
["Indløb-/udløbsarrangement","stk.",75,73,73,"Uændret"]
["Andre bygninger (tekniske installationer, målere mv.)","m2",75,0,0]
["Sparebassin/laguner - City"]
["Jordbassin Klasse B","m³",50,0,{"$f":"D314","v":0}]
["Jordbassin Klasse A","m³",50,0,{"$f":"D315","v":0}]
["Indløb-/udløbsarrangement","stk.",75,0,0]
["Andre bygninger (tekniske installationer, målere mv.)","m2",75,0,0]
["Sparebassin/laguner  - Indre city"]
["Jordbassin Klasse B","m³",50,0,{"$f":"D319","v":0}]
["Jordbassin Klasse A","m³",50,0,{"$f":"D320","v":0}]
["Indløb-/udløbsarrangement","stk.",75,0,0]
["Andre bygninger (tekniske installationer, målere mv.)","m2",75,0,0]

{"sheet":"Fællesfunktionsanlæg","index":2,"n_rows":16,"n_cols":6,"rows_kept":16,"cut":false,"hidden":false,"merged":[[0,5,1,5],[0,0,1,0],[0,1,1,1],[0,2,1,2],[0,3,1,3],[0,4,1,4]]}
["Fællesfunktionsanlæg","Enhed","Standard-levetid","Samlet mængde per 31/12-2014","Samlet mængde per 31/12-2015","Bemærk-ninger"]
[]
[]
["Andre"]
["Administrationbygninger","m2",75,1806.5,1807]
["Arbejdsplads og kontor","stk.",5,0,0]
["Køretøjer, personbil","stk.",5,2,3,"Nyindkøb til drift"]
["Køretøjer, små lastvogne (< 3.500 kg.)","stk.",5,11,12,"Nyindkøb til drift"]
["Køretøjer, store lastvogne (> 3.500 kg.)","stk.",5,2,2]
["Køretøjer, entreprenørmaskiner","stk.",5,7,7]
["Slamsugere","stk.",5,0,0]
["Værksteder, garager","m2",75,678,678]
["Øvrige"]
["Solcelleanlæg","KWh",25,0,0]
["EDB, tablets og navigationsudstyr","stk.",5,30,30]
["Elektroniske kort","stk.",5,0,0]

{"sheet":"Drop downliste","index":3,"n_rows":13,"n_cols":11,"rows_kept":13,"cut":false,"hidden":true,"merged":[]}
[]
[null,"datakvalitet","Serviceselskab","Overheads","Infrastrukturomlægninger","Infrastruktur per år","år 1","år 2","år 3","år 4","år 5"]
[null,null,null,null,null,null,2010,2011,2012,2013,2014]
[null,1,"ja","Full-cost","ja",0.1]
[null,2,"nej","Direct-cost","nej",0.2]
[null,3,null,"Nøgletalsfordeling",null,0.3]
[null,null,null,"Activity based cost",null,0.4]
[null,null,null,"Andet",null,0.5]
[null,null,null,null,null,0.6]
[null,null,null,null,null,0.7]
[null,null,null,null,null,0.8]
[null,null,null,null,null,0.9]
[null,null,null,null,null,1]